{"text_format":"1","workbook":"xlsx","n_sheets":10,"sheets":["Deckblatt","Anleitung","Richtlinien Jugendförderung","Update","Deandl","Buam","Jugendleiter","Erhebungsbogen","Förderantragsdaten","Zusätzliche Auswertungen"],"not_rendered":{"charts":0,"images":25,"macros":1,"external_links":2,"defined_names":8,"comments":0,"pivot_tables":0},"unopened":[],"bounds":{"document_bytes":16777216,"sheet_cells":100000,"rows_first":2000,"rows_last":500,"rows_between":2000,"halvings":0,"cell_chars":16384,"cell_head_chars":4096},"cells_cut":0,"cells_raw":0,"read":"whole","date_system":"1900"}

{"sheet":"Deckblatt","index":0,"n_rows":231,"n_cols":3,"rows_kept":231,"cut":false,"hidden":false,"merged":[[21,0,21,1],[26,0,26,1],[0,0,0,1],[1,0,1,1],[2,0,2,1],[9,0,9,1]]}
["Bayerische Trachtenjugend e.V.",null,{"$f":"TODAY()","v":"2024-10-17"}]
["Kinder und Jugenderfassung"]
[{"$f":"TEXT(TODAY()-31,\"jjJJ\")","v":"2024"}]
["zum Stichtag",{"$f":"IF(C4=1,(DATE(YEAR(TODAY()),10,32)-366),DATE(YEAR(TODAY()),10,31))","v":"2024-10-31"},{"$f":"MONTH(TODAY())","v":10}]
["(Vereinsname eintragen)","(Vereinsort eintragen)"]
["Gauverband:","(Gauverband auswählen)"]
["Regierungsbezirk:","(Regierungsbezirk auswählen)"]
["Landkreis:"]
["Kinder- und Jugenderfassung Version 2.20","Erstellt durch: Andal Huber ~ Lantfriedstraße 5 ~ 82387 Antdorf"]
["Vertretungsberechtigte Person:"]
["Name:"]
["Vorname:"]
["Geburtsdatum:"]
["Funktion:"]
["Straße:"]
["Hausnummer:"]
["PLZ:"]
["Ort:"]
["Telefon:"]
["E-Mail:"]
[]
["Bankverbindung"]
["Kreditinstitut:"]
["IBAN:"]
["BIC:"]
[]
["Sonstiges"]
["Steuernummer:"]
["Zuständiges Finanzamt"]
["Vereinsregisternummer:"]
[]
[]
[]
[]
[]
[]
["Kinder- und Jugenderfassung Version 2.20","Erstellt durch: Andal Huber ~ Lantfriedstraße 5 ~ 82387 Antdorf"]
[]
[]
[]
[]
[]
[]
[]
[]
[]
[]
[]
[]
[]
[]
[]
[]
[]
[]
[]
[]
[]
[]
[]
[]
[]
[]
[]
[]
[]
[]
[]
[]
[]
[]
[]
[]
[]
[]
[]
[]
[]
[]
[]
[]
[]
[]
[]
[]
[]
[]
[]
[]
[]
[]
[]
[]
[]
[]
[]
[]
[]
[]
[]
[]
[]
[]
[]
[]
[]
[]
[]
[]
[]
[]
[]
[]
[]
[]
[]
[]
[]
[]
[]
[]
[]
[]
[]
[]
[]
[]
[]
[]
[]
[]
[]
[]
[]
[]
[]
[]
[]
[]
[]
[]
[]
[]
[]
[]
[]
[]
[]
[]
[]
[]
[]
[]
[]
[]
[]
[]
[]
[]
[]
[]
[]
[]
[]
[]
[]
[]
[]
[]
[]
[]
[]
[]
[]
[]
[]
[]
[]
[]
[]
[]
[]
[]
[]
[]
[]
[]
[]
[]
[]
[]
[]
[]
[]
["(Regierungsbezirk auswählen)"]
["Oberbayern"]
["Niederbayern"]
["Oberpfalz"]
["Oberfranken"]
["Mittelfranken"]
["Unterfranken"]
["Schwaben"]
[]
[]
[]
[]
[]
[]
["(Gauverband auswählen)"]
["Allgäuer Gauverband"]
["Altbayrisch-Schwäbischer Gau"]
["Bayerischer - Inngau"]
["Bayerischer Waldgau"]
["Chiemgau-Alpenverband"]
["Donaugau"]
["Dreiflüsse - Trachtengau"]
["Gauverband I"]
["Gauverband Oberpfalz"]
["Huosigau"]
["Isargau"]
["Lechgauverband"]
["Loisachgau"]
["Oberer Lechgau"]
["Oberlandler Gauverband"]
["Oberpfälzer  Gauverband"]
["Rhein-Main-Gauverband"]
["Trachtengau München und Umgebung"]
["Trachtengau Niederbayern"]
["Trachtengauverband Oberfranken"]
["Trachtenverband Unterfranken"]
["Vereinigung links der Donau"]

{"sheet":"Anleitung","index":1,"n_rows":235,"n_cols":5,"rows_kept":235,"cut":false,"hidden":false,"merged":[[77,0,78,6],[82,0,83,6],[5,0,5,6],[25,0,26,6],[28,0,29,6],[31,0,31,6],[51,0,52,6],[277,0,277,6],[139,0,140,6],[168,0,170,6],[208,0,210,6],[207,0,207,6],[275,0,275,6]]}
["Anleitung zur Kinder- und Jugenderfassung"]
[]
["Die Kinder und Jugenderfassung soll euch Jugendleiter bei eurer Arbeit im Verein unterstützen."]
["So dient sie zum einen als Mitgliederverwaltung und soll euch zum anderen bei der jährlichen Antragstellung der Jugendförderung behilflich sein."]
["1. Deckblatt"]
["Die Jahreszahl wird automatisch für das entsprechende Jahr eingetragen.              "]
["Die Ermittlung erfolgt immer zum Stichtag 31.10. des jeweiligen Jahres"]
["Vereinsname (z.B. D´Waxnstoana) und Vereinsort (z.B. Antdorf) eintragen"]
[]
["Regierungsbezirk vom Vereinssitz und Gauverband auswählen"]
[]
["Über die Schaltflächen gelangt man zu den entsprechenden Arbeitsmappen"]
[]
[]
[]
[]
[]
["2. Deandl bzw. Buam"]
[]
[]
[]
[]
["2.1 Übersicht"]
["Die meisten Schaltflächen sind selbsterklärend."]
[]
["Bei drücken von \"Neis Deandl/Bua\" öffnet sich eine Maske zum Eintragen eines neuen Deandls/eines neuen Buam"]
[]
[]
["Drückt man auf \"Deandl/Bua ändern wird der Eintrag des Deandls/Buam geöffnet in dem der Cursor steht"]
[]
[]
["Bei Deandl/Bua löschen wird der Eintrag gelöscht in dem der Cursor steht"]
[]
[]
[]
["Speichern, Druckvorschau und Drucken dürften selbsterklärend sein."]
[]
[]
[]
[]
[]
[]
[]
["Die \"Zusätzlichen Angaben I-III\" kann jeder Verein/Gauverband selbst bestimmen"]
["z.B. Zusätzliche Angaben I - \"Münchner Kind\" / Zusätzliche Angaben II -  Tracht vom Verein ausgeliehen / Zusätzliche Angaben III - Weitere Angaben"]
["In der Erfassung kann dies dann entsprechen ausgefüllt werden"]
[]
[]
[]
["2.2. Erfassungsmaske"]
[]
["Hier werden die persönlichen Angaben der Kinder und Jugendlichen eingetragen"]
[]
[]
["Hier können die verschiedenen Gruppen / Tätigkeiten / Aktivitäten "]
["der/des Jugendlichen ausgewählt werden."]
["Sobald eine Gruppe (z.B. Dreherin) ausgewählt wurde wird automatisch"]
["bei \"Jugendliche bis einschl. 26 Jahren\" ebenfalls ein Haken gesetzt."]
["Wird \"Jugendliche ist Passiv\" ausgewählt werden alle weiteren Haken gelöscht."]
[]
["Trifft keine der Gruppen / Tätigkeiten / Aktivitäten auf die/den Jugendlichen zu"]
["oder übt sie/er weitere/andere aus können diese als \"Sonstiges 1-3\" erfasst werden."]
["Dabei muss jedoch die Bezeichnung der sonstigen Tätigkeit mit eingetragen werden."]
[]
["Hier können freiwillige Angaben getätigt werden"]
["Legt ein Verein / Gau für eine Angabe in der Deandl bzw. Buam - Übersicht fest, "]
["so muss der Text genau definiert werden welcher in das Feld geschrieben werden soll."]
["z.B."]
["Zusätzliche Angaben I - Münchner Kind"]
["Wenn ja dann X wenn nein dann leer",null,null,null,"oder \"Ja\" und \"Nein\""]
[]
["Nur so kann eine genaue Auswertung im Bereich \"Zusätzliche Auswertungen\" erfolgen."]
[]
[]
[]
["2.3 Änderungsmaske"]
[]
["Die Änderungsmaske ist die selbe Maske wie die der Erfassung nur mit den bereits erfassten Daten des jeweiligen Kindes / Jugendlichen."]
[]
["Hier können nachträglich Aktivitäten  gelöscht bzw. hinzugefügt werden und die/den Jugendliche auf \"Passiv\" setzen."]
["2.4 Deandl/Bua löschen"]
[]
["Deandl/Bua wird hiermit gelöscht (es gibt kein zurück) jedoch eine vorherige Sicherheitsabfrage."]
[]
[]
[]
[]
[]
[]
[]
[]
["3. Jugendleiter"]
[]
["3.1 Übersicht"]
[]
["Schaltflächen sind grundsätzlich die gleichen wie bei der Erfassung der Deandl bzw. Buam."]
[]
[]
[]
[]
[]
[]
["3.2 Erfassungsmaske"]
[]
["Hier werden die Daten der Jugendleiter erfasst. Neben den Angaben wie Name und Adressdaten werden hier auch die Aus- und Weiterbildungen sowie die JULEICA-Nummer erfasst."]
["Jugendleiter ohne JULEICA-Nummer und gültiger JULEICA werden nicht in den Erhebungsbogen bzw. Förderantrag übernommen!"]
["Unter Sonstiges können noch zusätzliche Angaben gemacht werden."]
[]
[]
[]
[]
[]
[]
[]
[]
[]
[]
[]
[]
[]
[]
[]
[]
[]
[]
[]
[]
[]
[]
[]
[]
[]
[]
[]
[]
[]
[]
["4. Mehrfachzählung / Jugenderhebungsbogen"]
[]
["Die in den Arbeitsmappen erfassten Daten der Kinder/Jugendlichen werden in diese Maske eingefügt"]
[]
[]
["Der Vereinsname, Sitz des Vereins sowie der Regierungsbezirk wird aus dem Deckblatt übernommen."]
[]
["Die Jugendleiter müssen selbst eingetragen werden."]
[]
[]
[]
[]
[]
[]
[]
[]
[]
[]
[]
[]
[]
[]
[]
[]
[]
[]
[]
[]
[]
[]
[]
["In dieser Maske muss noch die Anzahl der Mitarbeiter in der Jugendarbeit (z.B. Eltern, Vorplattler,…) einzutragen. Alle anderen Daten werden vom Programm selbstständig eingetragen."]
[]
[]
["Hier werden die qualifizierten Jugendleiter (ab 2018 nur mit JULEICA) aus der Jugendleitererfassung übernommen."]
[]
["Die maximal förderfähigen Jugendleiter werden  anhand der Richtlinien (je angefangene 10 Jugendliche ein förderfähiger Jugendleiter) berechnet"]
[]
["Sobald alle Kinder und Jugendlichen eingetragen und der Erhebungsbogen fertig ausgefüllt ist, muss der Erhebungsbogen mit der Schaltfläche "]
["gespeichert werden. Dabei werden nur die Daten im Erhebungsbogen als Extra-Datei gespeichert."]
["Diese Datei müsst ihr dann eurem Gaujugendleiter per Email zukommen lassen."]
["Unbedingt vor der Extra Ausgabe die Exceleistellungen überprüfen, dass nur ein Tabellenblatt in einer neuen Datei eingefügt werden soll."]
[]
[]
[]
[]
[]
[]
[]
[]
[]
[]
[]
[]
[]
[]
[]
[]
[]
[]
["6. Förderantragsdaten"]
[]
["Mit der Version 2.20 wurden ie Jugenderhebung und der Förderantrag wieder getrennt."]
["Der Jugendleiter erstellt mit der Jugenderhebung die Mehrfachzählung sowie die förderantragsrelevanten Daten"]
["zur Weiterreichung an den entsprechenden Vereinsveranwortlichen."]
[]
[]
[]
[]
[]
[]
[]
[]
[]
[]
[]
[]
[]
[]
[]
[]
[]
[]
[]
[]
[]
["6. Zusätzliche Auswertungen"]
[]
["Mit den \"Zusätzlichen Auswertungen\" können die Listen der Deandl und Buam nach gewissen Kriterien ausgewertet werden."]
["Dabei wird die ausgewählte Spalte nach den eingetragenen Suchkriterium durchsucht und die gesamte Anzahl ausgewiesen."]
["So kann z.B. die Anzahl der Kinder des gleichen Alters oder mit der gleichen Postleitzahl angezeigt werden"]
[]
["Weiterhin sind auch Auswertungen der \"Zusätzlichen Angaben\" wie z.B. \"Münchner Kind\" möglich"]
["Hierbei ist es wichtig, dass bei der Erfassung immer die gleiche Angabe eingetragen wurde"]
["z.B. Münchner Kind  Wenn ja dann \"X\""]
["so kann man in der Spalte \"Zusätzliche Angaben I\" als Suchkriterium \"X\" eintragen "]
["dann ermittelt das Programm die Anzahl der Kinder welche in dieser Spalte ein \"X\" eingetragen haben."]
["Dies funktioniert auch mit \"Ja\", \"Nein\" oder anderen Texten."]

{"sheet":"Richtlinien Jugendförderung","index":2,"n_rows":10,"n_cols":3,"rows_kept":10,"cut":false,"hidden":false,"merged":[[0,1,0,6]]}
[null,"Richtlinien für die Förderung der Jugendarbeit im Bayerischen Trachtenverband e.V."]
[]
["Änderungen ab 2023"]
[]
[" - förderfähig sind die Kinder erst ab dem vollendeten 3. Lebensjahr"]
[" - Stichtag für die Erhebung ist der 31.10. des Förderjahres "]
[" - daraus folgt:",null," - Kinder die bis zum 31.10. des Förderjahres ihren 3. Gebutstag feiern sind bereits im akutellen Jahr förderfähig"]
[null,null," - Kinder die nach dem 31.10. des Förderjahres ihren 3. Geburtstag feiern sind erst ab dem nächsten Jahr förderfähig"]
[null,null," - Jugendliche die vor dem (oder am)  31.10. des Förderjahres ihren 27. Gebutstag feiern sind im aktuellen Jahr nicht mehr förderfähig"]
[null,null," - Jugendliche die nach dem 31.10.  des Förderjahres ihren 27. Geburtstag feiern sind im aktuellen Jahr noch förderfähig"]

{"sheet":"Update","index":3,"n_rows":35,"n_cols":1,"rows_kept":35,"cut":false,"hidden":false,"merged":[[1,0,1,1]]}
["Update der Jugenderhebung auf die aktuelle Version"]
["Um Eure Jugenderfassung auf den neuesten Stand zu bringen ist ein Update erforderlich. Um eure Daten unkompliziert und möglichst fehlerfrei zu übertragen wurde die Funktion \"Update auf neueste Version eingeführt. Um das Update zu starten klickt ihr auf die Schaltfläche \"Update auf neueste Version\" "]
["Anschließend öffnet sich folgendes Fenster:"]
[]
[]
[]
[]
[]
[]
[]
[]
[]
[]
[]
[]
[]
[]
[]
[]
[]
["In diesem fenster wählt ihr eure aktuelle Jugenderhebung mit den aktuellen Daten aus."]
["Nach Bestätigung auf \"OK\" liest das Programm die Daten aus der alten Version in die neue Version ein."]
["Unter Umständen kommt folgende Meldung:"]
[]
["Diese bitte mit \"Aktualisieren\" bestätigen."]
["Die Daten aus der alten Version werden dann übernommen. Je nach Leistungsfähigkeit des PC´s dauert es ca. 10-30 Sekunden."]
[]
["Wenn alles funktioniert hat erscheint folgende Meldung:"]
[]
[]
[]
[]
[]
[]
["Diese Meldung mit \"OK\" bestätigen und anschließend die Datei speichern."]

{"sheet":"Deandl","index":4,"n_rows":972,"n_cols":31,"rows_kept":972,"cut":false,"hidden":false,"merged":[[0,22,0,23],[0,24,0,25],[0,26,0,27]]}
["Nr.","Name","Vorname","Geburtstag",{"$f":"Deckblatt!B4","v":"2024-10-31"},"Telefon","Straße","PLZ","Ort","JG","PG","VT","SG","VM","BS","SG","MU","TH","MK","BA","PA","Eintrittsjahr",null,null,null,null,null,null,"(Bezeichnung eintragen)","(Bezeichnung eintragen)","(Bezeichnung eintragen)"]
[]
[]
[]
[]
[]
[]
[]
[]
[]
[]
[]
[]
[]
[]
[]
[]
[]
[]
[]
[]
[]
[]
[]
[]
[]
[]
[]
[]
[]
[]
[]
[]
[]
[]
[]
[]
[]
[]
[]
[]
[]
[]
[]
[]
[]
[]
[]
[]
[]
[]
[]
[]
[]
[]
[]
[]
[]
[]
[]
[]
[]
[]
[]
[]
[]
[]
[]
[]
[]
[]
[]
[]
[]
[]
[]
[]
[]
[]
[]
[]
[]
[]
[]
[]
[]
[]
[]
[]
[]
[]
[]
[]
[]
[]
[]
[]
[]
[]
[]
[]
[]
[]
[]
[]
[]
[]
[]
[]
[]
[]
[]
[]
[]
[]
[]
[]
[]
[]
[]
[]
[]
[]
[]
[]
[]
[]
[]
[]
[]
[]
[]
[]
[]
[]
[]
[]
[]
[]
[]
[]
[]
[]
[]
[]
[]
[]
[]
[]
[]
[]
[]
[]
[]
[]
[]
[]
[]
[]
[]
[]
[]
[]
[]
[]
[]
[]
[]
[]
[]
[]
[]
[]
[]
[]
[]
[]
[]
[]
[]
[]
[]
[]
[]
[]
[]
[]
[]
[]
[]
[]
[]
[]
[]
[]
[]
[]
[]
[]
[]
[null,null,null,null,""]
[null,null,null,null,""]
[null,null,null,null,""]
[null,null,null,null,""]
[null,null,null,null,""]
[null,null,null,null,""]
[null,null,null,null,""]
[null,null,null,null,""]
[null,null,null,null,""]
[null,null,null,null,""]
[null,null,null,null,""]
[null,null,null,null,""]
[null,null,null,null,""]
[null,null,null,null,""]
[null,null,null,null,""]
[null,null,null,null,""]
[null,null,null,null,""]
[null,null,null,null,""]
[null,null,null,null,""]
[null,null,null,null,""]
[null,null,null,null,""]
[null,null,null,null,""]
[null,null,null,null,""]
[null,null,null,null,""]
[null,null,null,null,""]
[null,null,null,null,""]
[null,null,null,null,""]
[null,null,null,null,""]
[null,null,null,null,""]
[null,null,null,null,""]
[null,null,null,null,""]
[null,null,null,null,""]
[null,null,null,null,""]
[null,null,null,null,""]
[null,null,null,null,""]
[null,null,null,null,""]
[null,null,null,null,""]
[null,null,null,null,""]
[null,null,null,null,""]
[null,null,null,null,""]
[null,null,null,null,""]
[null,null,null,null,""]
[null,null,null,null,""]
[null,null,null,null,""]
[null,null,null,null,""]
[null,null,null,null,""]
[null,null,null,null,""]
[null,null,null,null,""]
[null,null,null,null,""]
[null,null,null,null,""]
[null,null,null,null,""]
[null,null,null,null,""]
[null,null,null,null,""]
[null,null,null,null,""]
[null,null,null,null,""]
[null,null,null,null,""]
[null,null,null,null,""]
[null,null,null,null,""]
[null,null,null,null,""]
[null,null,null,null,""]
[null,null,null,null,""]
[null,null,null,null,""]
[null,null,null,null,""]
[null,null,null,null,""]
[null,null,null,null,""]
[null,null,null,null,""]
[null,null,null,null,""]
[null,null,null,null,""]
[null,null,null,null,""]
[null,null,null,null,""]
[null,null,null,null,""]
[null,null,null,null,""]
[null,null,null,null,""]
[null,null,null,null,""]
[null,null,null,null,""]
[null,null,null,null,""]
[null,null,null,null,""]
[null,null,null,null,""]
[null,null,null,null,""]
[null,null,null,null,""]
[null,null,null,null,""]
[null,null,null,null,""]
[null,null,null,null,""]
[null,null,null,null,""]
[null,null,null,null,""]
[null,null,null,null,""]
[null,null,null,null,""]
[null,null,null,null,""]
[null,null,null,null,""]
[null,null,null,null,""]
[null,null,null,null,""]
[null,null,null,null,""]
[null,null,null,null,""]
[null,null,null,null,""]
[null,null,null,null,""]
[null,null,null,null,""]
[null,null,null,null,""]
[null,null,null,null,""]
[null,null,null,null,""]
[null,null,null,null,""]
[null,null,null,null,""]
[null,null,null,null,""]
[null,null,null,null,""]
[null,null,null,null,""]
[null,null,null,null,""]
[null,null,null,null,""]
[null,null,null,null,""]
[null,null,null,null,""]
[null,null,null,null,""]
[null,null,null,null,""]
[null,null,null,null,""]
[null,null,null,null,""]
[null,null,null,null,""]
[null,null,null,null,""]
[null,null,null,null,""]
[null,null,null,null,""]
[null,null,null,null,""]
[null,null,null,null,""]
[null,null,null,null,""]
[null,null,null,null,""]
[null,null,null,null,""]
[null,null,null,null,""]
[null,null,null,null,""]
[null,null,null,null,""]
[null,null,null,null,""]
[null,null,null,null,""]
[null,null,null,null,""]
[null,null,null,null,""]
[null,null,null,null,""]
[null,null,null,null,""]
[null,null,null,null,""]
[null,null,null,null,""]
[null,null,null,null,""]
[null,null,null,null,""]
[null,null,null,null,""]
[null,null,null,null,""]
[null,null,null,null,""]
[null,null,null,null,""]
[null,null,null,null,""]
[null,null,null,null,""]
[null,null,null,null,""]
[null,null,null,null,""]
[null,null,null,null,""]
[null,null,null,null,""]
[null,null,null,null,""]
[null,null,null,null,""]
[null,null,null,null,""]
[null,null,null,null,""]
[null,null,null,null,""]
[null,null,null,null,""]
[null,null,null,null,""]
[null,null,null,null,""]
[null,null,null,null,""]
[null,null,null,null,""]
[null,null,null,null,""]
[null,null,null,null,""]
[null,null,null,null,""]
[null,null,null,null,""]
[null,null,null,null,""]
[null,null,null,null,""]
[null,null,null,null,""]
[null,null,null,null,""]
[null,null,null,null,""]
[null,null,null,null,""]
[null,null,null,null,""]
[null,null,null,null,""]
[null,null,null,null,""]
[null,null,null,null,""]
[null,null,null,null,""]
[null,null,null,null,""]
[null,null,null,null,""]
[null,null,null,null,""]
[null,null,null,null,""]
[null,null,null,null,""]
[null,null,null,null,""]
[null,null,null,null,""]
[null,null,null,null,""]
[null,null,null,null,""]
[null,null,null,null,""]
[null,null,null,null,""]
[null,null,null,null,""]
[null,null,null,null,""]
[null,null,null,null,""]
[null,null,null,null,""]
[null,null,null,null,""]
[null,null,null,null,""]
[null,null,null,null,""]
[null,null,null,null,""]
[null,null,null,null,""]
[null,null,null,null,""]
[null,null,null,null,""]
[null,null,null,null,""]
[null,null,null,null,""]
[null,null,null,null,""]
[null,null,null,null,""]
[null,null,null,null,""]
[null,null,null,null,""]
[null,null,null,null,""]
[null,null,null,null,""]
[null,null,null,null,""]
[null,null,null,null,""]
[null,null,null,null,""]
[null,null,null,null,""]
[null,null,null,null,""]
[null,null,null,null,""]
[null,null,null,null,""]
[null,null,null,null,""]
[null,null,null,null,""]
[null,null,null,null,""]
[null,null,null,null,""]
[null,null,null,null,""]
[null,null,null,null,""]
[null,null,null,null,""]
[null,null,null,null,""]
[null,null,null,null,""]
[null,null,null,null,""]
[null,null,null,null,""]
[null,null,null,null,""]
[null,null,null,null,""]
[null,null,null,null,""]
[null,null,null,null,""]
[null,null,null,null,""]
[null,null,null,null,""]
[null,null,null,null,""]
[null,null,null,null,""]
[null,null,null,null,""]
[null,null,null,null,""]
[null,null,null,null,""]
[null,null,null,null,""]
[null,null,null,null,""]
[null,null,null,null,""]
[null,null,null,null,""]
[null,null,null,null,""]
[null,null,null,null,""]
[null,null,null,null,""]
[null,null,null,null,""]
[null,null,null,null,""]
[null,null,null,null,""]
[null,null,null,null,""]
[null,null,null,null,""]
[null,null,null,null,""]
[null,null,null,null,""]
[null,null,null,null,""]
[null,null,null,null,""]
[null,null,null,null,""]
[null,null,null,null,""]
[null,null,null,null,""]
[null,null,null,null,""]
[null,null,null,null,""]
[null,null,null,null,""]
[null,null,null,null,""]
[null,null,null,null,""]
[null,null,null,null,""]
[null,null,null,null,""]
[null,null,null,null,""]
[null,null,null,null,""]
[null,null,null,null,""]
[null,null,null,null,""]
[null,null,null,null,""]
[null,null,null,null,""]
[null,null,null,null,""]
[null,null,null,null,""]
[null,null,null,null,""]
[null,null,null,null,""]
[null,null,null,null,""]
[null,null,null,null,""]
[null,null,null,null,""]
[null,null,null,null,""]
[null,null,null,null,""]
[null,null,null,null,""]
[null,null,null,null,""]
[null,null,null,null,""]
[null,null,null,null,""]
[null,null,null,null,""]
[null,null,null,null,""]
[null,null,null,null,""]
[null,null,null,null,""]
[null,null,null,null,""]
[null,null,null,null,""]
[null,null,null,null,""]
[null,null,null,null,""]
[null,null,null,null,""]
[null,null,null,null,""]
[null,null,null,null,""]
[null,null,null,null,""]
[null,null,null,null,""]
[null,null,null,null,""]
[null,null,null,null,""]
[null,null,null,null,""]
[null,null,null,null,""]
[null,null,null,null,""]
[null,null,null,null,""]
[null,null,null,null,""]
[null,null,null,null,""]
[null,null,null,null,""]
[null,null,null,null,""]
[null,null,null,null,""]
[null,null,null,null,""]
[null,null,null,null,""]
[null,null,null,null,""]
[null,null,null,null,""]
[null,null,null,null,""]
[null,null,null,null,""]
[null,null,null,null,""]
[null,null,null,null,""]
[null,null,null,null,""]
[null,null,null,null,""]
[null,null,null,null,""]
[null,null,null,null,""]
[null,null,null,null,""]
[null,null,null,null,""]
[null,null,null,null,""]
[null,null,null,null,""]
[null,null,null,null,""]
[null,null,null,null,""]
[null,null,null,null,""]
[null,null,null,null,""]
[null,null,null,null,""]
[null,null,null,null,""]
[null,null,null,null,""]
[null,null,null,null,""]
[null,null,null,null,""]
[null,null,null,null,""]
[null,null,null,null,""]
[null,null,null,null,""]
[null,null,null,null,""]
[null,null,null,null,""]
[null,null,null,null,""]
[null,null,null,null,""]
[null,null,null,null,""]
[null,null,null,null,""]
[null,null,null,null,""]
[null,null,null,null,""]
[null,null,null,null,""]
[null,null,null,null,""]
[null,null,null,null,""]
[null,null,null,null,""]
[null,null,null,null,""]
[null,null,null,null,""]
[null,null,null,null,""]
[null,null,null,null,""]
[null,null,null,null,""]
[null,null,null,null,""]
[null,null,null,null,""]
[null,null,null,null,""]
[null,null,null,null,""]
[null,null,null,null,""]
[null,null,null,null,""]
[null,null,null,null,""]
[null,null,null,null,""]
[null,null,null,null,""]
[null,null,null,null,""]
[null,null,null,null,""]
[null,null,null,null,""]
[null,null,null,null,""]
[null,null,null,null,""]
[null,null,null,null,""]
[null,null,null,null,""]
[null,null,null,null,""]
[null,null,null,null,""]
[null,null,null,null,""]
[null,null,null,null,""]
[null,null,null,null,""]
[null,null,null,null,""]
[null,null,null,null,""]
[null,null,null,null,""]
[null,null,null,null,""]
[null,null,null,null,""]
[null,null,null,null,""]
[null,null,null,null,""]
[null,null,null,null,""]
[null,null,null,null,""]
[null,null,null,null,""]
[null,null,null,null,""]
[null,null,null,null,""]
[null,null,null,null,""]
[null,null,null,null,""]
[null,null,null,null,""]
[null,null,null,null,""]
[null,null,null,null,""]
[null,null,null,null,""]
[null,null,null,null,""]
[null,null,null,null,""]
[null,null,null,null,""]
[null,null,null,null,""]
[null,null,null,null,""]
[null,null,null,null,""]
[null,null,null,null,""]
[null,null,null,null,""]
[null,null,null,null,""]
[null,null,null,null,""]
[null,null,null,null,""]
[null,null,null,null,""]
[null,null,null,null,""]
[null,null,null,null,""]
[null,null,null,null,""]
[null,null,null,null,""]
[null,null,null,null,""]
[null,null,null,null,""]
[null,null,null,null,""]
[null,null,null,null,""]
[null,null,null,null,""]
[null,null,null,null,""]
[null,null,null,null,""]
[null,null,null,null,""]
[null,null,null,null,""]
[null,null,null,null,""]
[null,null,null,null,""]
[null,null,null,null,""]
[null,null,null,null,""]
[null,null,null,null,""]
[null,null,null,null,""]
[null,null,null,null,""]
[null,null,null,null,""]
[null,null,null,null,""]
[null,null,null,null,""]
[null,null,null,null,""]
[null,null,null,null,""]
[null,null,null,null,""]
[null,null,null,null,""]
[null,null,null,null,""]
[null,null,null,null,""]
[null,null,null,null,""]
[null,null,null,null,""]
[null,null,null,null,""]
[null,null,null,null,""]
[null,null,null,null,""]
[null,null,null,null,""]
[null,null,null,null,""]
[null,null,null,null,""]
[null,null,null,null,""]
[null,null,null,null,""]
[null,null,null,null,""]
[null,null,null,null,""]
[null,null,null,null,""]
[null,null,null,null,""]
[null,null,null,null,""]
[null,null,null,null,""]
[null,null,null,null,""]
[null,null,null,null,""]
[null,null,null,null,""]
[null,null,null,null,""]
[null,null,null,null,""]
[null,null,null,null,""]
[null,null,null,null,""]
[null,null,null,null,""]
[null,null,null,null,""]
[null,null,null,null,""]
[null,null,null,null,""]
[null,null,null,null,""]
[null,null,null,null,""]
[null,null,null,null,""]
[null,null,null,null,""]
[null,null,null,null,""]
[null,null,null,null,""]
[null,null,null,null,""]
[null,null,null,null,""]
[null,null,null,null,""]
[null,null,null,null,""]
[null,null,null,null,""]
[null,null,null,null,""]
[null,null,null,null,""]
[null,null,null,null,""]
[null,null,null,null,""]
[null,null,null,null,""]
[null,null,null,null,""]
[null,null,null,null,""]
[null,null,null,null,""]
[null,null,null,null,""]
[null,null,null,null,""]
[null,null,null,null,""]
[null,null,null,null,""]
[null,null,null,null,""]
[null,null,null,null,""]
[null,null,null,null,""]
[null,null,null,null,""]
[null,null,null,null,""]
[null,null,null,null,""]
[null,null,null,null,""]
[null,null,null,null,""]
[null,null,null,null,""]
[null,null,null,null,""]
[null,null,null,null,""]
[null,null,null,null,""]
[null,null,null,null,""]
[null,null,null,null,""]
[null,null,null,null,""]
[null,null,null,null,""]
[null,null,null,null,""]
[null,null,null,null,""]
[null,null,null,null,""]
[null,null,null,null,""]
[null,null,null,null,""]
[null,null,null,null,""]
[null,null,null,null,""]
[null,null,null,null,""]
[null,null,null,null,""]
[null,null,null,null,""]
[null,null,null,null,""]
[null,null,null,null,""]
[null,null,null,null,""]
[null,null,null,null,""]
[null,null,null,null,""]
[null,null,null,null,""]
[null,null,null,null,""]
[null,null,null,null,""]
[null,null,null,null,""]
[null,null,null,null,""]
[null,null,null,null,""]
[null,null,null,null,""]
[null,null,null,null,""]
[null,null,null,null,""]
[null,null,null,null,""]
[null,null,null,null,""]
[null,null,null,null,""]
[null,null,null,null,""]
[null,null,null,null,""]
[null,null,null,null,""]
[null,null,null,null,""]
[null,null,null,null,""]
[null,null,null,null,""]
[null,null,null,null,""]
[null,null,null,null,""]
[null,null,null,null,""]
[null,null,null,null,""]
[null,null,null,null,""]
[null,null,null,null,""]
[null,null,null,null,""]
[null,null,null,null,""]
[null,null,null,null,""]
[null,null,null,null,""]
[null,null,null,null,""]
[null,null,null,null,""]
[null,null,null,null,""]
[null,null,null,null,""]
[null,null,null,null,""]
[null,null,null,null,""]
[null,null,null,null,""]
[null,null,null,null,""]
[null,null,null,null,""]
[null,null,null,null,""]
[null,null,null,null,""]
[null,null,null,null,""]
[null,null,null,null,""]
[null,null,null,null,""]
[null,null,null,null,""]
[null,null,null,null,""]
[null,null,null,null,""]
[null,null,null,null,""]
[null,null,null,null,""]
[null,null,null,null,""]
[null,null,null,null,""]
[null,null,null,null,""]
[null,null,null,null,""]
[null,null,null,null,""]
[null,null,null,null,""]
[null,null,null,null,""]
[null,null,null,null,""]
[null,null,null,null,""]
[null,null,null,null,""]
[null,null,null,null,""]
[null,null,null,null,""]
[null,null,null,null,""]
[null,null,null,null,""]
[null,null,null,null,""]
[null,null,null,null,""]
[null,null,null,null,""]
[null,null,null,null,""]
[null,null,null,null,""]
[null,null,null,null,""]
[null,null,null,null,""]
[null,null,null,null,""]
[null,null,null,null,""]
[null,null,null,null,""]
[null,null,null,null,""]
[null,null,null,null,""]
[null,null,null,null,""]
[null,null,null,null,""]
[null,null,null,null,""]
[null,null,null,null,""]
[null,null,null,null,""]
[null,null,null,null,""]
[null,null,null,null,""]
[null,null,null,null,""]
[null,null,null,null,""]
[null,null,null,null,""]
[null,null,null,null,""]
[null,null,null,null,""]
[null,null,null,null,""]
[null,null,null,null,""]
[null,null,null,null,""]
[null,null,null,null,""]
[null,null,null,null,""]
[null,null,null,null,""]
[null,null,null,null,""]
[null,null,null,null,""]
[null,null,null,null,""]
[null,null,null,null,""]
[null,null,null,null,""]
[null,null,null,null,""]
[null,null,null,null,""]
[null,null,null,null,""]
[null,null,null,null,""]
[null,null,null,null,""]
[null,null,null,null,""]
[null,null,null,null,""]
[null,null,null,null,""]
[null,null,null,null,""]
[null,null,null,null,""]
[null,null,null,null,""]
[null,null,null,null,""]
[null,null,null,null,""]
[null,null,null,null,""]
[null,null,null,null,""]
[null,null,null,null,""]
[null,null,null,null,""]
[null,null,null,null,""]
[null,null,null,null,""]
[null,null,null,null,""]
[null,null,null,null,""]
[null,null,null,null,""]
[null,null,null,null,""]
[null,null,null,null,""]
[null,null,null,null,""]
[null,null,null,null,""]
[null,null,null,null,""]
[null,null,null,null,""]
[null,null,null,null,""]
[null,null,null,null,""]
[null,null,null,null,""]
[null,null,null,null,""]
[null,null,null,null,""]
[null,null,null,null,""]
[null,null,null,null,""]
[null,null,null,null,""]
[null,null,null,null,""]
[null,null,null,null,""]
[null,null,null,null,""]
[null,null,null,null,""]
[null,null,null,null,""]
[null,null,null,null,""]
[null,null,null,null,""]
[null,null,null,null,""]
[null,null,null,null,""]
[null,null,null,null,""]
[864,"Fichtner","Maria","26.008.1992",{"$error":"#NUM!"},"","Im Seefeld ",null,"82387 Antdorf","x",null,"x","x","x",null,null,null,null,null,null,null,"2016","Firstlady","","",""]
[865,"","","01.01.1991",null,"","",null,"","x","x","x","x","x",null,null,null,null,null,"x",null,"","","","",""]
[]
[]
[]
[]
[]
[]
[]
[]
[]
[]
[]
[]
[]
[]
[]
[]
[]
[]
[]
[]
[]
[]
[]
[]
[]
[]
[]
[]
[]
[]
[]
[]
[]
[]
[]
[]
[]
[]
[]
[]
[]
[]
[]
[]
[]
[]
[]
[]
[]
[]
[]
[]
[]
[]
[]
[]
[]
[]
[]
[]
[]
[]
[]
[]
[]
[]
[]
[]
[]
[]
[]
[]
[]
[]
[]
[]
[]
[]
[]
[]
[]
[]
[]
[]
[]
[]
[]
[]
[]
[]
[]
[]
[]
[]
[]
[]
[]
[]
[]
[]
[]
[]
[]
[]
[]
[]
[]
[]
[]
[]
[]
[]
[]
[]
[]
[]
[]
[]
[]
[]
[]
[]
[]
[]
[null,null,null,null,null,null,null,null,null,null,null,null,null,null,null,null,null,null,null,null,null,null,null,null,null,null,""]

{"sheet":"Buam","index":5,"n_rows":1034,"n_cols":37,"rows_kept":1034,"cut":false,"hidden":false,"merged":[[0,22,0,23],[0,24,0,25],[0,26,0,27]]}
["Nr.","Name","Vorname","Geburtstag",{"$f":"Deckblatt!B4","v":"2024-10-31"},"Telefon","Straße","PLZ","Ort","JG","PG","VT","SG","VM","BS","SG","MU","TH","MK","BA","PA","Eintrittsjahr",null,null,null,null,null,null,"(Bezeichnung eintragen)","(Bezeichnung eintragen)","(Bezeichnung eintragen)"]
[]
[]
[]
[]
[]
[]
[]
[]
[]
[]
[]
[]
[]
[]
[]
[]
[]
[]
[]
[]
[]
[]
[]
[]
[]
[]
[]
[]
[]
[]
[]
[]
[]
[]
[]
[]
[]
[]
[]
[]
[]
[]
[]
[]
[]
[]
[]
[]
[]
[]
[]
[]
[]
[]
[]
[]
[]
[]
[]
[]
[]
[]
[]
[]
[]
[]
[]
[]
[]
[]
[]
[]
[]
[]
[]
[]
[]
[]
[]
[]
[]
[]
[]
[]
[]
[]
[]
[]
[]
[]
[]
[]
[]
[]
[]
[]
[]
[]
[]
[]
[]
[]
[]
[]
[]
[]
[]
[]
[]
[]
[]
[]
[]
[]
[]
[]
[]
[]
[]
[]
[]
[]
[]
[]
[]
[]
[]
[]
[]
[]
[]
[]
[]
[]
[]
[]
[]
[]
[]
[]
[]
[]
[]
[]
[]
[]
[]
[]
[]
[]
[]
[]
[]
[]
[]
[]
[]
[]
[]
[]
[]
[]
[]
[]
[]
[]
[]
[]
[]
[]
[]
[]
[]
[]
[]
[]
[]
[]
[]
[]
[]
[]
[]
[]
[]
[]
[]
[]
[]
[]
[]
[]
[]
[]
[]
[]
[]
[]
[]
[null,null,null,null,""]
[null,null,null,null,""]
[null,null,null,null,""]
[null,null,null,null,""]
[null,null,null,null,""]
[null,null,null,null,""]
[null,null,null,null,""]
[null,null,null,null,""]
[null,null,null,null,""]
[null,null,null,null,""]
[null,null,null,null,""]
[null,null,null,null,""]
[null,null,null,null,""]
[null,null,null,null,""]
[null,null,null,null,""]
[null,null,null,null,""]
[null,null,null,null,""]
[null,null,null,null,""]
[null,null,null,null,""]
[null,null,null,null,""]
[null,null,null,null,""]
[null,null,null,null,""]
[null,null,null,null,""]
[null,null,null,null,""]
[null,null,null,null,""]
[null,null,null,null,""]
[null,null,null,null,""]
[null,null,null,null,""]
[null,null,null,null,""]
[null,null,null,null,""]
[null,null,null,null,""]
[null,null,null,null,""]
[null,null,null,null,""]
[null,null,null,null,""]
[null,null,null,null,""]
[null,null,null,null,""]
[null,null,null,null,""]
[null,null,null,null,""]
[null,null,null,null,""]
[null,null,null,null,""]
[null,null,null,null,""]
[null,null,null,null,""]
[null,null,null,null,""]
[null,null,null,null,""]
[null,null,null,null,""]
[null,null,null,null,""]
[null,null,null,null,""]
[null,null,null,null,""]
[null,null,null,null,""]
[null,null,null,null,""]
[null,null,null,null,""]
[null,null,null,null,""]
[null,null,null,null,""]
[null,null,null,null,""]
[null,null,null,null,""]
[null,null,null,null,""]
[null,null,null,null,""]
[null,null,null,null,""]
[null,null,null,null,""]
[null,null,null,null,""]
[null,null,null,null,""]
[null,null,null,null,""]
[null,null,null,null,""]
[null,null,null,null,""]
[null,null,null,null,""]
[null,null,null,null,""]
[null,null,null,null,""]
[null,null,null,null,""]
[null,null,null,null,""]
[null,null,null,null,""]
[null,null,null,null,""]
[null,null,null,null,""]
[null,null,null,null,""]
[null,null,null,null,""]
[null,null,null,null,""]
[null,null,null,null,""]
[null,null,null,null,""]
[null,null,null,null,""]
[null,null,null,null,""]
[null,null,null,null,""]
[null,null,null,null,""]
[null,null,null,null,""]
[null,null,null,null,""]
[null,null,null,null,""]
[null,null,null,null,""]
[null,null,null,null,""]
[null,null,null,null,""]
[null,null,null,null,""]
[null,null,null,null,""]
[null,null,null,null,""]
[null,null,null,null,""]
[null,null,null,null,""]
[null,null,null,null,""]
[null,null,null,null,""]
[null,null,null,null,""]
[null,null,null,null,""]
[null,null,null,null,""]
[null,null,null,null,""]
[null,null,null,null,""]
[null,null,null,null,""]
[null,null,null,null,""]
[null,null,null,null,""]
[null,null,null,null,""]
[null,null,null,null,""]
[null,null,null,null,""]
[null,null,null,null,""]
[null,null,null,null,""]
[null,null,null,null,""]
[null,null,null,null,""]
[null,null,null,null,""]
[null,null,null,null,""]
[null,null,null,null,""]
[null,null,null,null,""]
[null,null,null,null,""]
[null,null,null,null,""]
[null,null,null,null,""]
[null,null,null,null,""]
[null,null,null,null,""]
[null,null,null,null,""]
[null,null,null,null,""]
[null,null,null,null,""]
[null,null,null,null,""]
[null,null,null,null,""]
[null,null,null,null,""]
[null,null,null,null,""]
[null,null,null,null,""]
[null,null,null,null,""]
[null,null,null,null,""]
[null,null,null,null,""]
[null,null,null,null,""]
[null,null,null,null,""]
[null,null,null,null,""]
[null,null,null,null,""]
[null,null,null,null,""]
[null,null,null,null,""]
[null,null,null,null,""]
[null,null,null,null,""]
[null,null,null,null,""]
[null,null,null,null,""]
[null,null,null,null,""]
[null,null,null,null,""]
[null,null,null,null,""]
[null,null,null,null,""]
[null,null,null,null,""]
[null,null,null,null,""]
[null,null,null,null,""]
[null,null,null,null,""]
[null,null,null,null,""]
[null,null,null,null,""]
[null,null,null,null,""]
[null,null,null,null,""]
[null,null,null,null,""]
[null,null,null,null,""]
[null,null,null,null,""]
[null,null,null,null,""]
[null,null,null,null,""]
[null,null,null,null,""]
[null,null,null,null,""]
[null,null,null,null,""]
[null,null,null,null,""]
[null,null,null,null,""]
[null,null,null,null,""]
[null,null,null,null,""]
[null,null,null,null,""]
[null,null,null,null,""]
[null,null,null,null,""]
[null,null,null,null,""]
[null,null,null,null,""]
[null,null,null,null,""]
[null,null,null,null,""]
[null,null,null,null,""]
[null,null,null,null,""]
[null,null,null,null,""]
[null,null,null,null,""]
[null,null,null,null,""]
[null,null,null,null,""]
[null,null,null,null,""]
[null,null,null,null,""]
[null,null,null,null,""]
[null,null,null,null,""]
[null,null,null,null,""]
[null,null,null,null,""]
[null,null,null,null,""]
[null,null,null,null,""]
[null,null,null,null,""]
[null,null,null,null,""]
[null,null,null,null,""]
[null,null,null,null,""]
[null,null,null,null,""]
[null,null,null,null,""]
[null,null,null,null,""]
[null,null,null,null,""]
[null,null,null,null,""]
[null,null,null,null,""]
[null,null,null,null,""]
[null,null,null,null,""]
[null,null,null,null,""]
[null,null,null,null,""]
[null,null,null,null,""]
[null,null,null,null,""]
[null,null,null,null,""]
[null,null,null,null,""]
[null,null,null,null,""]
[null,null,null,null,""]
[null,null,null,null,""]
[null,null,null,null,""]
[null,null,null,null,""]
[null,null,null,null,""]
[null,null,null,null,""]
[null,null,null,null,""]
[null,null,null,null,""]
[null,null,null,null,""]
[null,null,null,null,""]
[null,null,null,null,""]
[null,null,null,null,""]
[null,null,null,null,""]
[null,null,null,null,""]
[null,null,null,null,""]
[null,null,null,null,""]
[null,null,null,null,""]
[null,null,null,null,""]
[null,null,null,null,""]
[null,null,null,null,""]
[null,null,null,null,""]
[null,null,null,null,""]
[null,null,null,null,""]
[null,null,null,null,""]
[null,null,null,null,""]
[null,null,null,null,""]
[null,null,null,null,""]
[null,null,null,null,""]
[null,null,null,null,""]
[null,null,null,null,""]
[null,null,null,null,""]
[null,null,null,null,""]
[null,null,null,null,""]
[null,null,null,null,""]
[null,null,null,null,""]
[null,null,null,null,""]
[null,null,null,null,""]
[null,null,null,null,""]
[null,null,null,null,""]
[null,null,null,null,""]
[null,null,null,null,""]
[null,null,null,null,""]
[null,null,null,null,""]
[null,null,null,null,""]
[null,null,null,null,""]
[null,null,null,null,""]
[null,null,null,null,""]
[null,null,null,null,""]
[null,null,null,null,""]
[null,null,null,null,""]
[null,null,null,null,""]
[null,null,null,null,""]
[null,null,null,null,""]
[null,null,null,null,""]
[null,null,null,null,""]
[null,null,null,null,""]
[null,null,null,null,""]
[null,null,null,null,""]
[null,null,null,null,""]
[null,null,null,null,""]
[null,null,null,null,""]
[null,null,null,null,""]
[null,null,null,null,""]
[null,null,null,null,""]
[null,null,null,null,""]
[null,null,null,null,""]
[null,null,null,null,""]
[null,null,null,null,""]
[null,null,null,null,""]
[null,null,null,null,""]
[null,null,null,null,""]
[null,null,null,null,""]
[null,null,null,null,""]
[null,null,null,null,""]
[null,null,null,null,""]
[null,null,null,null,""]
[null,null,null,null,""]
[null,null,null,null,""]
[null,null,null,null,""]
[null,null,null,null,""]
[null,null,null,null,""]
[null,null,null,null,""]
[null,null,null,null,""]
[null,null,null,null,""]
[null,null,null,null,""]
[null,null,null,null,""]
[null,null,null,null,""]
[null,null,null,null,""]
[null,null,null,null,""]
[null,null,null,null,""]
[null,null,null,null,""]
[null,null,null,null,""]
[null,null,null,null,""]
[null,null,null,null,""]
[null,null,null,null,""]
[null,null,null,null,""]
[null,null,null,null,""]
[null,null,null,null,""]
[null,null,null,null,""]
[null,null,null,null,""]
[null,null,null,null,""]
[null,null,null,null,""]
[null,null,null,null,""]
[null,null,null,null,""]
[null,null,null,null,""]
[null,null,null,null,""]
[null,null,null,null,""]
[null,null,null,null,""]
[null,null,null,null,""]
[null,null,null,null,""]
[null,null,null,null,""]
[null,null,null,null,""]
[null,null,null,null,""]
[null,null,null,null,""]
[null,null,null,null,""]
[null,null,null,null,""]
[null,null,null,null,""]
[null,null,null,null,""]
[null,null,null,null,""]
[null,null,null,null,""]
[null,null,null,null,""]
[null,null,null,null,""]
[null,null,null,null,""]
[null,null,null,null,""]
[null,null,null,null,""]
[null,null,null,null,""]
[null,null,null,null,""]
[null,null,null,null,""]
[null,null,null,null,""]
[null,null,null,null,""]
[null,null,null,null,""]
[null,null,null,null,""]
[null,null,null,null,""]
[null,null,null,null,""]
[null,null,null,null,""]
[null,null,null,null,""]
[null,null,null,null,""]
[null,null,null,null,""]
[null,null,null,null,""]
[null,null,null,null,""]
[null,null,null,null,""]
[null,null,null,null,""]
[null,null,null,null,""]
[null,null,null,null,""]
[null,null,null,null,""]
[null,null,null,null,""]
[null,null,null,null,""]
[null,null,null,null,""]
[null,null,null,null,""]
[null,null,null,null,""]
[null,null,null,null,""]
[null,null,null,null,""]
[null,null,null,null,""]
[null,null,null,null,""]
[null,null,null,null,""]
[null,null,null,null,""]
[null,null,null,null,""]
[null,null,null,null,""]
[null,null,null,null,""]
[null,null,null,null,""]
[null,null,null,null,""]
[null,null,null,null,""]
[null,null,null,null,""]
[null,null,null,null,""]
[null,null,null,null,""]
[null,null,null,null,""]
[null,null,null,null,""]
[null,null,null,null,""]
[null,null,null,null,""]
[null,null,null,null,""]
[null,null,null,null,""]
[null,null,null,null,""]
[null,null,null,null,""]
[null,null,null,null,""]
[null,null,null,null,""]
[null,null,null,null,""]
[null,null,null,null,""]
[null,null,null,null,""]
[null,null,null,null,""]
[null,null,null,null,""]
[null,null,null,null,""]
[null,null,null,null,""]
[null,null,null,null,""]
[null,null,null,null,""]
[null,null,null,null,""]
[null,null,null,null,""]
[null,null,null,null,""]
[null,null,null,null,""]
[null,null,null,null,""]
[null,null,null,null,""]
[null,null,null,null,""]
[null,null,null,null,""]
[null,null,null,null,""]
[null,null,null,null,""]
[null,null,null,null,""]
[null,null,null,null,""]
[null,null,null,null,""]
[null,null,null,null,""]
[null,null,null,null,""]
[null,null,null,null,""]
[null,null,null,null,""]
[null,null,null,null,""]
[null,null,null,null,""]
[null,null,null,null,""]
[null,null,null,null,""]
[null,null,null,null,""]
[null,null,null,null,""]
[null,null,null,null,""]
[null,null,null,null,""]
[null,null,null,null,""]
[null,null,null,null,""]
[null,null,null,null,""]
[null,null,null,null,""]
[null,null,null,null,""]
[null,null,null,null,""]
[null,null,null,null,""]
[null,null,null,null,""]
[null,null,null,null,""]
[null,null,null,null,""]
[null,null,null,null,""]
[null,null,null,null,""]
[null,null,null,null,""]
[null,null,null,null,""]
[null,null,null,null,""]
[null,null,null,null,""]
[null,null,null,null,""]
[null,null,null,null,""]
[null,null,null,null,""]
[null,null,null,null,""]
[null,null,null,null,""]
[null,null,null,null,""]
[null,null,null,null,""]
[null,null,null,null,""]
[null,null,null,null,""]
[null,null,null,null,""]
[null,null,null,null,""]
[null,null,null,null,""]
[null,null,null,null,""]
[null,null,null,null,""]
[null,null,null,null,""]
[null,null,null,null,""]
[null,null,null,null,""]
[null,null,null,null,""]
[null,null,null,null,""]
[null,null,null,null,""]
[null,null,null,null,""]
[null,null,null,null,""]
[null,null,null,null,""]
[null,null,null,null,""]
[null,null,null,null,""]
[null,null,null,null,""]
[null,null,null,null,""]
[null,null,null,null,""]
[null,null,null,null,""]
[null,null,null,null,""]
[null,null,null,null,""]
[null,null,null,null,""]
[null,null,null,null,""]
[null,null,null,null,""]
[null,null,null,null,""]
[null,null,null,null,""]
[null,null,null,null,""]
[null,null,null,null,""]
[null,null,null,null,""]
[null,null,null,null,""]
[null,null,null,null,""]
[null,null,null,null,""]
[null,null,null,null,""]
[null,null,null,null,""]
[null,null,null,null,""]
[null,null,null,null,""]
[null,null,null,null,""]
[null,null,null,null,""]
[null,null,null,null,""]
[null,null,null,null,""]
[null,null,null,null,""]
[null,null,null,null,""]
[null,null,null,null,""]
[null,null,null,null,""]
[null,null,null,null,""]
[null,null,null,null,""]
[null,null,null,null,""]
[null,null,null,null,""]
[null,null,null,null,""]
[null,null,null,null,""]
[null,null,null,null,""]
[null,null,null,null,""]
[null,null,null,null,""]
[null,null,null,null,""]
[null,null,null,null,""]
[null,null,null,null,""]
[null,null,null,null,""]
[null,null,null,null,""]
[null,null,null,null,""]
[null,null,null,null,""]
[null,null,null,null,""]
[null,null,null,null,""]
[null,null,null,null,""]
[null,null,null,null,""]
[null,null,null,null,""]
[null,null,null,null,""]
[null,null,null,null,""]
[null,null,null,null,""]
[null,null,null,null,""]
[null,null,null,null,""]
[null,null,null,null,""]
[null,null,null,null,""]
[null,null,null,null,""]
[null,null,null,null,""]
[null,null,null,null,""]
[null,null,null,null,""]
[null,null,null,null,""]
[null,null,null,null,""]
[null,null,null,null,""]
[null,null,null,null,""]
[null,null,null,null,""]
[null,null,null,null,""]
[null,null,null,null,""]
[null,null,null,null,""]
[null,null,null,null,""]
[null,null,null,null,""]
[null,null,null,null,""]
[null,null,null,null,""]
[null,null,null,null,""]
[null,null,null,null,""]
[null,null,null,null,""]
[null,null,null,null,""]
[null,null,null,null,""]
[null,null,null,null,""]
[null,null,null,null,""]
[null,null,null,null,""]
[null,null,null,null,""]
[null,null,null,null,""]
[null,null,null,null,""]
[null,null,null,null,""]
[null,null,null,null,""]
[null,null,null,null,""]
[null,null,null,null,""]
[null,null,null,null,""]
[null,null,null,null,""]
[null,null,null,null,""]
[null,null,null,null,""]
[null,null,null,null,""]
[null,null,null,null,""]
[null,null,null,null,""]
[null,null,null,null,""]
[null,null,null,null,""]
[null,null,null,null,""]
[null,null,null,null,""]
[null,null,null,null,""]
[null,null,null,null,""]
[null,null,null,null,""]
[null,null,null,null,""]
[null,null,null,null,""]
[null,null,null,null,""]
[null,null,null,null,""]
[null,null,null,null,""]
[null,null,null,null,""]
[null,null,null,null,""]
[null,null,null,null,""]
[null,null,null,null,""]
[null,null,null,null,""]
[null,null,null,null,""]
[null,null,null,null,""]
[null,null,null,null,""]
[null,null,null,null,""]
[null,null,null,null,""]
[null,null,null,null,""]
[null,null,null,null,""]
[null,null,null,null,""]
[null,null,null,null,""]
[null,null,null,null,""]
[null,null,null,null,""]
[null,null,null,null,""]
[null,null,null,null,""]
[null,null,null,null,""]
[null,null,null,null,""]
[null,null,null,null,""]
[null,null,null,null,""]
[null,null,null,null,""]
[null,null,null,null,""]
[null,null,null,null,""]
[null,null,null,null,""]
[null,null,null,null,""]
[null,null,null,null,""]
[null,null,null,null,""]
[null,null,null,null,""]
[null,null,null,null,""]
[null,null,null,null,""]
[null,null,null,null,""]
[null,null,null,null,""]
[null,null,null,null,""]
[null,null,null,null,""]
[null,null,null,null,""]
[null,null,null,null,""]
[null,null,null,null,""]
[null,null,null,null,""]
[null,null,null,null,""]
[null,null,null,null,""]
[null,null,null,null,""]
[null,null,null,null,""]
[null,null,null,null,""]
[null,null,null,null,""]
[null,null,null,null,""]
[null,null,null,null,""]
[null,null,null,null,""]
[null,null,null,null,""]
[null,null,null,null,""]
[null,null,null,null,""]
[null,null,null,null,""]
[null,null,null,null,""]
[null,null,null,null,""]
[null,null,null,null,""]
[null,null,null,null,""]
[null,null,null,null,""]
[null,null,null,null,""]
[null,null,null,null,""]
[null,null,null,null,""]
[null,null,null,null,""]
[null,null,null,null,""]
[null,null,null,null,""]
[null,null,null,null,""]
[null,null,null,null,""]
[null,null,null,null,""]
[null,null,null,null,""]
[null,null,null,null,""]
[null,null,null,null,""]
[null,null,null,null,""]
[null,null,null,null,""]
[null,null,null,null,""]
[null,null,null,null,""]
[null,null,null,null,""]
[null,null,null,null,""]
[null,null,null,null,""]
[null,null,null,null,""]
[null,null,null,null,""]
[null,null,null,null,""]
[null,null,null,null,null,null,null,null,null,null,null,null,null,null,null,null,null,null,null,null,null,null,null,null,null,"",null,"",""]
[null,null,null,null,null,null,null,null,null,null,null,null,null,null,null,null,null,null,null,null,null,null,null,null,null,"",null,"",""]
[]
[]
[]
[]
[]
[]
[]
[]
[]
[]
[]
[]
[]
[]
[]
[]
[]
[]
[]
[]
[]
[]
[]
[]
[]
[]
[]
[]
[]
[]
[]
[]
[]
[]
[]
[]
[]
[]
[]
[]
[]
[]
[]
[]
[]
[]
[]
[]
[]
[]
[]
[]
[]
[]
[]
[]
[]
[]
[]
[]
[]
[]
[]
[]
[]
[]
[]
[]
[]
[]
[]
[]
[]
[]
[]
[]
[]
[]
[]
[]
[]
[]
[]
[]
[]
[]
[]
[]
[]
[]
[]
[]
[]
[]
[]
[]
[]
[]
[]
[]
[]
[]
[]
[]
[]
[]
[]
[]
[]
[]
[]
[]
[]
[]
[]
[]
[]
[]
[]
[]
[]
[]
[]
[]
[null,null,null,null,null,null,null,null,null,null,null,null,null,null,null,null,null,null,null,null,null,null,null,null,null,null,null,null,null,""]
[]
[]
[]
[]
[]
[]
[]
[]
[]
[]
[]
[]
[]
[]
[]
[]
[]
[]
[]
[]
[]
[]
[]
[]
[]
[]
[]
[]
[]
[]
[]
[]
[]
[]
[]
[]
[]
[]
[]
[]
[]
[]
[]
[]
[]
[]
[]
[]
[]
[]
[]
[]
[]
[]
[]
[]
[null,null,null,null,null,null,null,null,null,null,null,null,null,null,null,null,null,null,null,null,null,null,null,null,null,null,null,null,null,null,null,null,null,null,null,null,"Name"]
[null,null,null,null,null,null,null,null,null,null,null,null,null,null,null,null,null,null,null,null,null,null,null,null,null,null,null,null,null,null,null,null,null,null,null,null,"Vorname"]
[null,null,null,null,null,null,null,null,null,null,null,null,null,null,null,null,null,null,null,null,null,null,null,null,null,null,null,null,null,null,null,null,null,null,null,null,"Alter"]
[null,null,null,null,null,null,null,null,null,null,null,null,null,null,null,null,null,null,null,null,null,null,null,null,null,null,null,null,null,null,null,null,null,null,null,null,"PLZ"]
[null,null,null,null,null,null,null,null,null,null,null,null,null,null,null,null,null,null,null,null,null,null,null,null,null,null,null,null,null,null,null,null,null,null,null,null,"Eintrittsjahr"]
[null,null,null,null,null,null,null,null,null,null,null,null,null,null,null,null,null,null,null,null,null,null,null,null,null,null,null,null,null,null,null,null,null,null,null,null,"Sonstiges 1"]
[null,null,null,null,null,null,null,null,null,null,null,null,null,null,null,null,null,null,null,null,null,null,null,null,null,null,null,null,null,null,null,null,null,null,null,null,"Sonstiges 2"]
[null,null,null,null,null,null,null,null,null,null,null,null,null,null,null,null,null,null,null,null,null,null,null,null,null,null,null,null,null,null,null,null,null,null,null,null,"Sonstiges 3"]
[null,null,null,null,null,null,null,null,null,null,null,null,null,null,null,null,null,null,null,null,null,null,null,null,null,null,null,null,null,null,null,null,null,null,null,null,"Zusätzlich I"]
[null,null,null,null,null,null,null,null,null,null,null,null,null,null,null,null,null,null,null,null,null,null,null,null,null,null,null,null,null,null,null,null,null,null,null,null,"Zusätzlich II"]
[null,null,null,null,null,null,null,null,null,null,null,null,null,null,null,null,null,null,null,null,null,null,null,null,null,null,null,null,null,null,null,null,null,null,null,null,"Zusätzlich III"]

{"sheet":"Jugendleiter","index":6,"n_rows":1386,"n_cols":20,"rows_kept":1386,"cut":false,"hidden":false,"merged":[]}
[" Nr.","Name","Vorname","Straße","PLZ, Ort","Telefon","Email","Amt im Verein ","Geburtstag",{"$f":"Deckblatt!B4","v":"2024-10-31"},"Jugendleiter grundschulung Teil I","Jugendleiter grundschulung Teil II","Erste-Hilfe-Kurs","JULEICA Nr.","JULEICA       gültig bis",null,"(Bezeichnung eintragen)","(Bezeichnung eintragen)",{"$f":"Erhebungsbogen!I2","v":"(Vereinsort eintragen)"},{"$f":"Erhebungsbogen!K1","v":"2024"}]
[]
[]
[]
[]
[]
[]
[]
[]
[]
[]
[]
[]
[]
[]
[]
[]
[]
[]
[]
[]
[]
[]
[]
[]
[]
[]
[]
[]
[]
[]
[]
[]
[]
[]
[]
[]
[]
[]
[]
[]
[]
[]
[]
[]
[]
[]
[]
[]
[]
[]
[]
[]
[]
[]
[]
[]
[]
[]
[]
[]
[]
[]
[]
[]
[]
[]
[]
[]
[]
[]
[]
[]
[]
[]
[]
[]
[]
[]
[]
[]
[]
[]
[]
[]
[]
[]
[]
[]
[]
[]
[]
[]
[]
[]
[]
[]
[]
[]
[]
[null,null,null,null,null,null,null,null,null,""]
[null,null,null,null,null,null,null,null,null,""]
[null,null,null,null,null,null,null,null,null,""]
[null,null,null,null,null,null,null,null,null,""]
[null,null,null,null,null,null,null,null,null,""]
[null,null,null,null,null,null,null,null,null,""]
[null,null,null,null,null,null,null,null,null,""]
[null,null,null,null,null,null,null,null,null,""]
[null,null,null,null,null,null,null,null,null,""]
[null,null,null,null,null,null,null,null,null,""]
[null,null,null,null,null,null,null,null,null,""]
[null,null,null,null,null,null,null,null,null,""]
[null,null,null,null,null,null,null,null,null,""]
[null,null,null,null,null,null,null,null,null,""]
[null,null,null,null,null,null,null,null,null,""]
[null,null,null,null,null,null,null,null,null,""]
[null,null,null,null,null,null,null,null,null,""]
[null,null,null,null,null,null,null,null,null,""]
[null,null,null,null,null,null,null,null,null,""]
[null,null,null,null,null,null,null,null,null,""]
[null,null,null,null,null,null,null,null,null,""]
[null,null,null,null,null,null,null,null,null,""]
[null,null,null,null,null,null,null,null,null,""]
[null,null,null,null,null,null,null,null,null,""]
[null,null,null,null,null,null,null,null,null,""]
[null,null,null,null,null,null,null,null,null,""]
[null,null,null,null,null,null,null,null,null,""]
[null,null,null,null,null,null,null,null,null,""]
[null,null,null,null,null,null,null,null,null,""]
[null,null,null,null,null,null,null,null,null,""]
[null,null,null,null,null,null,null,null,null,"",null,null,null,null,null,""]
[null,null,null,null,null,null,null,null,null,"",null,null,null,null,null,""]
[null,null,null,null,null,null,null,null,null,"",null,null,null,null,null,""]
[null,null,null,null,null,null,null,null,null,"",null,null,null,null,null,""]
[null,null,null,null,null,null,null,null,null,"",null,null,null,null,null,""]
[null,null,null,null,null,null,null,null,null,"",null,null,null,null,null,""]
[null,null,null,null,null,null,null,null,null,"",null,null,null,null,null,""]
[null,null,null,null,null,null,null,null,null,"",null,null,null,null,null,""]
[null,null,null,null,null,null,null,null,null,"",null,null,null,null,null,""]
[null,null,null,null,null,null,null,null,null,"",null,null,null,null,null,""]
[null,null,null,null,null,null,null,null,null,"",null,null,null,null,null,""]
[null,null,null,null,null,null,null,null,null,"",null,null,null,null,null,""]
[null,null,null,null,null,null,null,null,null,"",null,null,null,null,null,""]
[null,null,null,null,null,null,null,null,null,"",null,null,null,null,null,""]
[null,null,null,null,null,null,null,null,null,"",null,null,null,null,null,""]
[null,null,null,null,null,null,null,null,null,"",null,null,null,null,null,""]
[null,null,null,null,null,null,null,null,null,"",null,null,null,null,null,""]
[null,null,null,null,null,null,null,null,null,"",null,null,null,null,null,""]
[null,null,null,null,null,null,null,null,null,"",null,null,null,null,null,""]
[null,null,null,null,null,null,null,null,null,"",null,null,null,null,null,""]
[null,null,null,null,null,null,null,null,null,"",null,null,null,null,null,""]
[null,null,null,null,null,null,null,null,null,"",null,null,null,null,null,""]
[null,null,null,null,null,null,null,null,null,"",null,null,null,null,null,""]
[null,null,null,null,null,null,null,null,null,"",null,null,null,null,null,""]
[null,null,null,null,null,null,null,null,null,"",null,null,null,null,null,""]
[null,null,null,null,null,null,null,null,null,"",null,null,null,null,null,""]
[null,null,null,null,null,null,null,null,null,"",null,null,null,null,null,""]
[null,null,null,null,null,null,null,null,null,"",null,null,null,null,null,""]
[null,null,null,null,null,null,null,null,null,"",null,null,null,null,null,""]
[null,null,null,null,null,null,null,null,null,"",null,null,null,null,null,""]
[null,null,null,null,null,null,null,null,null,"",null,null,null,null,null,""]
[null,null,null,null,null,null,null,null,null,"",null,null,null,null,null,""]
[null,null,null,null,null,null,null,null,null,"",null,null,null,null,null,""]
[null,null,null,null,null,null,null,null,null,"",null,null,null,null,null,""]
[null,null,null,null,null,null,null,null,null,"",null,null,null,null,null,""]
[null,null,null,null,null,null,null,null,null,"",null,null,null,null,null,""]
[null,null,null,null,null,null,null,null,null,"",null,null,null,null,null,""]
[null,null,null,null,null,null,null,null,null,"",null,null,null,null,null,""]
[null,null,null,null,null,null,null,null,null,"",null,null,null,null,null,""]
[null,null,null,null,null,null,null,null,null,"",null,null,null,null,null,""]
[null,null,null,null,null,null,null,null,null,"",null,null,null,null,null,""]
[null,null,null,null,null,null,null,null,null,"",null,null,null,null,null,""]
[null,null,null,null,null,null,null,null,null,"",null,null,null,null,null,""]
[null,null,null,null,null,null,null,null,null,"",null,null,null,null,null,""]
[null,null,null,null,null,null,null,null,null,"",null,null,null,null,null,""]
[null,null,null,null,null,null,null,null,null,"",null,null,null,null,null,""]
[null,null,null,null,null,null,null,null,null,"",null,null,null,null,null,""]
[null,null,null,null,null,null,null,null,null,"",null,null,null,null,null,""]
[null,null,null,null,null,null,null,null,null,"",null,null,null,null,null,""]
[null,null,null,null,null,null,null,null,null,"",null,null,null,null,null,""]
[null,null,null,null,null,null,null,null,null,"",null,null,null,null,null,""]
[null,null,null,null,null,null,null,null,null,"",null,null,null,null,null,""]
[null,null,null,null,null,null,null,null,null,"",null,null,null,null,null,""]
[null,null,null,null,null,null,null,null,null,"",null,null,null,null,null,""]
[null,null,null,null,null,null,null,null,null,"",null,null,null,null,null,""]
[null,null,null,null,null,null,null,null,null,"",null,null,null,null,null,""]
[null,null,null,null,null,null,null,null,null,"",null,null,null,null,null,""]
[null,null,null,null,null,null,null,null,null,"",null,null,null,null,null,""]
[null,null,null,null,null,null,null,null,null,"",null,null,null,null,null,""]
[null,null,null,null,null,null,null,null,null,"",null,null,null,null,null,""]
[null,null,null,null,null,null,null,null,null,"",null,null,null,null,null,""]
[null,null,null,null,null,null,null,null,null,"",null,null,null,null,null,""]
[null,null,null,null,null,null,null,null,null,"",null,null,null,null,null,""]
[null,null,null,null,null,null,null,null,null,"",null,null,null,null,null,""]
[null,null,null,null,null,null,null,null,null,"",null,null,null,null,null,""]
[null,null,null,null,null,null,null,null,null,"",null,null,null,null,null,""]
[null,null,null,null,null,null,null,null,null,"",null,null,null,null,null,""]
[null,null,null,null,null,null,null,null,null,"",null,null,null,null,null,""]
[null,null,null,null,null,null,null,null,null,"",null,null,null,null,null,""]
[null,null,null,null,null,null,null,null,null,"",null,null,null,null,null,""]
[null,null,null,null,null,null,null,null,null,"",null,null,null,null,null,""]
[null,null,null,null,null,null,null,null,null,"",null,null,null,null,null,""]
[null,null,null,null,null,null,null,null,null,"",null,null,null,null,null,""]
[null,null,null,null,null,null,null,null,null,"",null,null,null,null,null,""]
[null,null,null,null,null,null,null,null,null,"",null,null,null,null,null,""]
[null,null,null,null,null,null,null,null,null,"",null,null,null,null,null,""]
[null,null,null,null,null,null,null,null,null,"",null,null,null,null,null,""]
[null,null,null,null,null,null,null,null,null,"",null,null,null,null,null,""]
[null,null,null,null,null,null,null,null,null,"",null,null,null,null,null,""]
[null,null,null,null,null,null,null,null,null,"",null,null,null,null,null,""]
[null,null,null,null,null,null,null,null,null,"",null,null,null,null,null,""]
[null,null,null,null,null,null,null,null,null,"",null,null,null,null,null,""]
[null,null,null,null,null,null,null,null,null,"",null,null,null,null,null,""]
[null,null,null,null,null,null,null,null,null,""]
[null,null,null,null,null,null,null,null,null,""]
[null,null,null,null,null,null,null,null,null,""]
[null,null,null,null,null,null,null,null,null,""]
[null,null,null,null,null,null,null,null,null,""]
[null,null,null,null,null,null,null,null,null,""]
[null,null,null,null,null,null,null,null,null,""]
[null,null,null,null,null,null,null,null,null,""]
[null,null,null,null,null,null,null,null,null,""]
[null,null,null,null,null,null,null,null,null,""]
[null,null,null,null,null,null,null,null,null,""]
[null,null,null,null,null,null,null,null,null,""]
[null,null,null,null,null,null,null,null,null,""]
[null,null,null,null,null,null,null,null,null,""]
[null,null,null,null,null,null,null,null,null,""]
[null,null,null,null,null,null,null,null,null,""]
[null,null,null,null,null,null,null,null,null,""]
[null,null,null,null,null,null,null,null,null,""]
[null,null,null,null,null,null,null,null,null,""]
[null,null,null,null,null,null,null,null,null,""]
[null,null,null,null,null,null,null,null,null,""]
[null,null,null,null,null,null,null,null,null,""]
[null,null,null,null,null,null,null,null,null,""]
[null,null,null,null,null,null,null,null,null,""]
[null,null,null,null,null,null,null,null,null,""]
[null,null,null,null,null,null,null,null,null,""]
[null,null,null,null,null,null,null,null,null,""]
[null,null,null,null,null,null,null,null,null,""]
[null,null,null,null,null,null,null,null,null,""]
[null,null,null,null,null,null,null,null,null,""]
[null,null,null,null,null,null,null,null,null,""]
[null,null,null,null,null,null,null,null,null,""]
[null,null,null,null,null,null,null,null,null,""]
[null,null,null,null,null,null,null,null,null,""]
[null,null,null,null,null,null,null,null,null,""]
[null,null,null,null,null,null,null,null,null,""]
[null,null,null,null,null,null,null,null,null,""]
[null,null,null,null,null,null,null,null,null,""]
[null,null,null,null,null,null,null,null,null,""]
[null,null,null,null,null,null,null,null,null,""]
[null,null,null,null,null,null,null,null,null,""]
[null,null,null,null,null,null,null,null,null,""]
[null,null,null,null,null,null,null,null,null,""]
[null,null,null,null,null,null,null,null,null,""]
[null,null,null,null,null,null,null,null,null,""]
[null,null,null,null,null,null,null,null,null,""]
[null,null,null,null,null,null,null,null,null,""]
[null,null,null,null,null,null,null,null,null,""]
[null,null,null,null,null,null,null,null,null,""]
[null,null,null,null,null,null,null,null,null,""]
[null,null,null,null,null,null,null,null,null,""]
[null,null,null,null,null,null,null,null,null,""]
[null,null,null,null,null,null,null,null,null,""]
[null,null,null,null,null,null,null,null,null,""]
[null,null,null,null,null,null,null,null,null,""]
[null,null,null,null,null,null,null,null,null,""]
[null,null,null,null,null,null,null,null,null,""]
[null,null,null,null,null,null,null,null,null,""]
[null,null,null,null,null,null,null,null,null,""]
[null,null,null,null,null,null,null,null,null,""]
[null,null,null,null,null,null,null,null,null,""]
[null,null,null,null,null,null,null,null,null,""]
[null,null,null,null,null,null,null,null,null,""]
[null,null,null,null,null,null,null,null,null,""]
[null,null,null,null,null,null,null,null,null,""]
[null,null,null,null,null,null,null,null,null,""]
[null,null,null,null,null,null,null,null,null,""]
[null,null,null,null,null,null,null,null,null,""]
[null,null,null,null,null,null,null,null,null,""]
[null,null,null,null,null,null,null,null,null,""]
[null,null,null,null,null,null,null,null,null,""]
[null,null,null,null,null,null,null,null,null,""]
[null,null,null,null,null,null,null,null,null,""]
[null,null,null,null,null,null,null,null,null,""]
[null,null,null,null,null,null,null,null,null,""]
[null,null,null,null,null,null,null,null,null,""]
[null,null,null,null,null,null,null,null,null,""]
[null,null,null,null,null,null,null,null,null,""]
[null,null,null,null,null,null,null,null,null,""]
[null,null,null,null,null,null,null,null,null,""]
[null,null,null,null,null,null,null,null,null,""]
[null,null,null,null,null,null,null,null,null,""]
[null,null,null,null,null,null,null,null,null,""]
[null,null,null,null,null,null,null,null,null,""]
[null,null,null,null,null,null,null,null,null,""]
[null,null,null,null,null,null,null,null,null,""]
[null,null,null,null,null,null,null,null,null,""]
[null,null,null,null,null,null,null,null,null,""]
[null,null,null,null,null,null,null,null,null,""]
[null,null,null,null,null,null,null,null,null,""]
[null,null,null,null,null,null,null,null,null,""]
[null,null,null,null,null,null,null,null,null,""]
[null,null,null,null,null,null,null,null,null,""]
[null,null,null,null,null,null,null,null,null,""]
[null,null,null,null,null,null,null,null,null,""]
[null,null,null,null,null,null,null,null,null,""]
[null,null,null,null,null,null,null,null,null,""]
[null,null,null,null,null,null,null,null,null,""]
[null,null,null,null,null,null,null,null,null,""]
[null,null,null,null,null,null,null,null,null,""]
[null,null,null,null,null,null,null,null,null,""]
[null,null,null,null,null,null,null,null,null,""]
[null,null,null,null,null,null,null,null,null,""]
[null,null,null,null,null,null,null,null,null,""]
[null,null,null,null,null,null,null,null,null,""]
[null,null,null,null,null,null,null,null,null,""]
[null,null,null,null,null,null,null,null,null,""]
[null,null,null,null,null,null,null,null,null,""]
[null,null,null,null,null,null,null,null,null,""]
[null,null,null,null,null,null,null,null,null,""]
[null,null,null,null,null,null,null,null,null,""]
[null,null,null,null,null,null,null,null,null,""]
[null,null,null,null,null,null,null,null,null,""]
[null,null,null,null,null,null,null,null,null,""]
[null,null,null,null,null,null,null,null,null,""]
[null,null,null,null,null,null,null,null,null,""]
[null,null,null,null,null,null,null,null,null,""]
[null,null,null,null,null,null,null,null,null,""]
[null,null,null,null,null,null,null,null,null,""]
[null,null,null,null,null,null,null,null,null,""]
[null,null,null,null,null,null,null,null,null,""]
[null,null,null,null,null,null,null,null,null,""]
[null,null,null,null,null,null,null,null,null,""]
[null,null,null,null,null,null,null,null,null,""]
[null,null,null,null,null,null,null,null,null,""]
[null,null,null,null,null,null,null,null,null,""]
[null,null,null,null,null,null,null,null,null,""]
[null,null,null,null,null,null,null,null,null,""]
[null,null,null,null,null,null,null,null,null,""]
[null,null,null,null,null,null,null,null,null,""]
[null,null,null,null,null,null,null,null,null,""]
[null,null,null,null,null,null,null,null,null,""]
[null,null,null,null,null,null,null,null,null,""]
[null,null,null,null,null,null,null,null,null,""]
[null,null,null,null,null,null,null,null,null,""]
[null,null,null,null,null,null,null,null,null,""]
[null,null,null,null,null,null,null,null,null,""]
[null,null,null,null,null,null,null,null,null,""]
[null,null,null,null,null,null,null,null,null,""]
[null,null,null,null,null,null,null,null,null,""]
[null,null,null,null,null,null,null,null,null,""]
[null,null,null,null,null,null,null,null,null,""]
[null,null,null,null,null,null,null,null,null,""]
[null,null,null,null,null,null,null,null,null,""]
[null,null,null,null,null,null,null,null,null,""]
[null,null,null,null,null,null,null,null,null,""]
[null,null,null,null,null,null,null,null,null,""]
[null,null,null,null,null,null,null,null,null,""]
[null,null,null,null,null,null,null,null,null,""]
[null,null,null,null,null,null,null,null,null,""]
[null,null,null,null,null,null,null,null,null,""]
[null,null,null,null,null,null,null,null,null,""]
[null,null,null,null,null,null,null,null,null,""]
[null,null,null,null,null,null,null,null,null,""]
[null,null,null,null,null,null,null,null,null,""]
[null,null,null,null,null,null,null,null,null,""]
[null,null,null,null,null,null,null,null,null,""]
[null,null,null,null,null,null,null,null,null,""]
[null,null,null,null,null,null,null,null,null,""]
[null,null,null,null,null,null,null,null,null,""]
[null,null,null,null,null,null,null,null,null,""]
[null,null,null,null,null,null,null,null,null,""]
[null,null,null,null,null,null,null,null,null,""]
[null,null,null,null,null,null,null,null,null,""]
[null,null,null,null,null,null,null,null,null,""]
[null,null,null,null,null,null,null,null,null,""]
[null,null,null,null,null,null,null,null,null,""]
[null,null,null,null,null,null,null,null,null,""]
[null,null,null,null,null,null,null,null,null,""]
[null,null,null,null,null,null,null,null,null,""]
[null,null,null,null,null,null,null,null,null,""]
[null,null,null,null,null,null,null,null,null,""]
[null,null,null,null,null,null,null,null,null,""]
[null,null,null,null,null,null,null,null,null,""]
[null,null,null,null,null,null,null,null,null,""]
[null,null,null,null,null,null,null,null,null,""]
[null,null,null,null,null,null,null,null,null,""]
[null,null,null,null,null,null,null,null,null,""]
[null,null,null,null,null,null,null,null,null,""]
[null,null,null,null,null,null,null,null,null,""]
[null,null,null,null,null,null,null,null,null,""]
[null,null,null,null,null,null,null,null,null,""]
[null,null,null,null,null,null,null,null,null,""]
[null,null,null,null,null,null,null,null,null,""]
[null,null,null,null,null,null,null,null,null,""]
[null,null,null,null,null,null,null,null,null,""]
[null,null,null,null,null,null,null,null,null,""]
[null,null,null,null,null,null,null,null,null,""]
[null,null,null,null,null,null,null,null,null,""]
[null,null,null,null,null,null,null,null,null,""]
[null,null,null,null,null,null,null,null,null,""]
[null,null,null,null,null,null,null,null,null,""]
[null,null,null,null,null,null,null,null,null,""]
[null,null,null,null,null,null,null,null,null,""]
[null,null,null,null,null,null,null,null,null,""]
[null,null,null,null,null,null,null,null,null,""]
[null,null,null,null,null,null,null,null,null,""]
[null,null,null,null,null,null,null,null,null,""]
[null,null,null,null,null,null,null,null,null,""]
[null,null,null,null,null,null,null,null,null,""]
[null,null,null,null,null,null,null,null,null,""]
[null,null,null,null,null,null,null,null,null,""]
[null,null,null,null,null,null,null,null,null,""]
[null,null,null,null,null,null,null,null,null,""]
[null,null,null,null,null,null,null,null,null,""]
[null,null,null,null,null,null,null,null,null,""]
[null,null,null,null,null,null,null,null,null,""]
[null,null,null,null,null,null,null,null,null,""]
[null,null,null,null,null,null,null,null,null,""]
[null,null,null,null,null,null,null,null,null,""]
[null,null,null,null,null,null,null,null,null,""]
[null,null,null,null,null,null,null,null,null,""]
[null,null,null,null,null,null,null,null,null,""]
[null,null,null,null,null,null,null,null,null,""]
[null,null,null,null,null,null,null,null,null,""]
[null,null,null,null,null,null,null,null,null,""]
[null,null,null,null,null,null,null,null,null,""]
[null,null,null,null,null,null,null,null,null,""]
[null,null,null,null,null,null,null,null,null,""]
[null,null,null,null,null,null,null,null,null,""]
[null,null,null,null,null,null,null,null,null,""]
[null,null,null,null,null,null,null,null,null,""]
[null,null,null,null,null,null,null,null,null,""]
[null,null,null,null,null,null,null,null,null,""]
[null,null,null,null,null,null,null,null,null,""]
[null,null,null,null,null,null,null,null,null,""]
[null,null,null,null,null,null,null,null,null,""]
[null,null,null,null,null,null,null,null,null,""]
[null,null,null,null,null,null,null,null,null,""]
[null,null,null,null,null,null,null,null,null,""]
[null,null,null,null,null,null,null,null,null,""]
[null,null,null,null,null,null,null,null,null,""]
[null,null,null,null,null,null,null,null,null,""]
[null,null,null,null,null,null,null,null,null,""]
[null,null,null,null,null,null,null,null,null,""]
[null,null,null,null,null,null,null,null,null,""]
[null,null,null,null,null,null,null,null,null,""]
[null,null,null,null,null,null,null,null,null,""]
[null,null,null,null,null,null,null,null,null,""]
[null,null,null,null,null,null,null,null,null,""]
[null,null,null,null,null,null,null,null,null,""]
[null,null,null,null,null,null,null,null,null,""]
[null,null,null,null,null,null,null,null,null,""]
[null,null,null,null,null,null,null,null,null,""]
[null,null,null,null,null,null,null,null,null,""]
[null,null,null,null,null,null,null,null,null,""]
[null,null,null,null,null,null,null,null,null,""]
[null,null,null,null,null,null,null,null,null,""]
[null,null,null,null,null,null,null,null,null,""]
[null,null,null,null,null,null,null,null,null,""]
[null,null,null,null,null,null,null,null,null,""]
[null,null,null,null,null,null,null,null,null,""]
[null,null,null,null,null,null,null,null,null,""]
[null,null,null,null,null,null,null,null,null,""]
[null,null,null,null,null,null,null,null,null,""]
[null,null,null,null,null,null,null,null,null,""]
[null,null,null,null,null,null,null,null,null,""]
[null,null,null,null,null,null,null,null,null,""]
[null,null,null,null,null,null,null,null,null,""]
[null,null,null,null,null,null,null,null,null,""]
[null,null,null,null,null,null,null,null,null,""]
[null,null,null,null,null,null,null,null,null,""]
[null,null,null,null,null,null,null,null,null,""]
[null,null,null,null,null,null,null,null,null,""]
[null,null,null,null,null,null,null,null,null,""]
[null,null,null,null,null,null,null,null,null,""]
[null,null,null,null,null,null,null,null,null,""]
[null,null,null,null,null,null,null,null,null,""]
[null,null,null,null,null,null,null,null,null,""]
[null,null,null,null,null,null,null,null,null,""]
[null,null,null,null,null,null,null,null,null,""]
[null,null,null,null,null,null,null,null,null,""]
[null,null,null,null,null,null,null,null,null,""]
[null,null,null,null,null,null,null,null,null,""]
[null,null,null,null,null,null,null,null,null,""]
[null,null,null,null,null,null,null,null,null,""]
[null,null,null,null,null,null,null,null,null,""]
[null,null,null,null,null,null,null,null,null,""]
[null,null,null,null,null,null,null,null,null,""]
[null,null,null,null,null,null,null,null,null,""]
[null,null,null,null,null,null,null,null,null,""]
[null,null,null,null,null,null,null,null,null,""]
[null,null,null,null,null,null,null,null,null,""]
[null,null,null,null,null,null,null,null,null,""]
[null,null,null,null,null,null,null,null,null,""]
[null,null,null,null,null,null,null,null,null,""]
[null,null,null,null,null,null,null,null,null,""]
[null,null,null,null,null,null,null,null,null,""]
[null,null,null,null,null,null,null,null,null,""]
[null,null,null,null,null,null,null,null,null,""]
[null,null,null,null,null,null,null,null,null,""]
[null,null,null,null,null,null,null,null,null,""]
[null,null,null,null,null,null,null,null,null,""]
[null,null,null,null,null,null,null,null,null,""]
[null,null,null,null,null,null,null,null,null,""]
[null,null,null,null,null,null,null,null,null,""]
[null,null,null,null,null,null,null,null,null,""]
[null,null,null,null,null,null,null,null,null,""]
[null,null,null,null,null,null,null,null,null,""]
[null,null,null,null,null,null,null,null,null,""]
[null,null,null,null,null,null,null,null,null,""]
[null,null,null,null,null,null,null,null,null,""]
[null,null,null,null,null,null,null,null,null,""]
[null,null,null,null,null,null,null,null,null,""]
[null,null,null,null,null,null,null,null,null,""]
[null,null,null,null,null,null,null,null,null,""]
[null,null,null,null,null,null,null,null,null,""]
[null,null,null,null,null,null,null,null,null,""]
[null,null,null,null,null,null,null,null,null,""]
[null,null,null,null,null,null,null,null,null,""]
[null,null,null,null,null,null,null,null,null,""]
[null,null,null,null,null,null,null,null,null,""]
[null,null,null,null,null,null,null,null,null,""]
[null,null,null,null,null,null,null,null,null,""]
[null,null,null,null,null,null,null,null,null,""]
[null,null,null,null,null,null,null,null,null,""]
[null,null,null,null,null,null,null,null,null,""]
[null,null,null,null,null,null,null,null,null,""]
[null,null,null,null,null,null,null,null,null,""]
[null,null,null,null,null,null,null,null,null,""]
[null,null,null,null,null,null,null,null,null,""]
[null,null,null,null,null,null,null,null,null,""]
[null,null,null,null,null,null,null,null,null,""]
[null,null,null,null,null,null,null,null,null,""]
[null,null,null,null,null,null,null,null,null,""]
[null,null,null,null,null,null,null,null,null,""]
[null,null,null,null,null,null,null,null,null,""]
[null,null,null,null,null,null,null,null,null,""]
[null,null,null,null,null,null,null,null,null,""]
[null,null,null,null,null,null,null,null,null,""]
[null,null,null,null,null,null,null,null,null,""]
[null,null,null,null,null,null,null,null,null,""]
[null,null,null,null,null,null,null,null,null,""]
[null,null,null,null,null,null,null,null,null,""]
[null,null,null,null,null,null,null,null,null,""]
[null,null,null,null,null,null,null,null,null,""]
[null,null,null,null,null,null,null,null,null,""]
[null,null,null,null,null,null,null,null,null,""]
[null,null,null,null,null,null,null,null,null,""]
[null,null,null,null,null,null,null,null,null,""]
[null,null,null,null,null,null,null,null,null,""]
[null,null,null,null,null,null,null,null,null,""]
[null,null,null,null,null,null,null,null,null,""]
[null,null,null,null,null,null,null,null,null,""]
[null,null,null,null,null,null,null,null,null,""]
[null,null,null,null,null,null,null,null,null,""]
[null,null,null,null,null,null,null,null,null,""]
[null,null,null,null,null,null,null,null,null,""]
[null,null,null,null,null,null,null,null,null,""]
[null,null,null,null,null,null,null,null,null,""]
[null,null,null,null,null,null,null,null,null,""]
[null,null,null,null,null,null,null,null,null,""]
[null,null,null,null,null,null,null,null,null,""]
[null,null,null,null,null,null,null,null,null,""]
[null,null,null,null,null,null,null,null,null,""]
[null,null,null,null,null,null,null,null,null,""]
[null,null,null,null,null,null,null,null,null,""]
[null,null,null,null,null,null,null,null,null,""]
[null,null,null,null,null,null,null,null,null,""]
[null,null,null,null,null,null,null,null,null,""]
[null,null,null,null,null,null,null,null,null,""]
[null,null,null,null,null,null,null,null,null,""]
[null,null,null,null,null,null,null,null,null,""]
[null,null,null,null,null,null,null,null,null,""]
[null,null,null,null,null,null,null,null,null,""]
[null,null,null,null,null,null,null,null,null,""]
[null,null,null,null,null,null,null,null,null,""]
[null,null,null,null,null,null,null,null,null,""]
[null,null,null,null,null,null,null,null,null,""]
[null,null,null,null,null,null,null,null,null,""]
[null,null,null,null,null,null,null,null,null,""]
[null,null,null,null,null,null,null,null,null,""]
[null,null,null,null,null,null,null,null,null,""]
[null,null,null,null,null,null,null,null,null,""]
[null,null,null,null,null,null,null,null,null,""]
[null,null,null,null,null,null,null,null,null,""]
[null,null,null,null,null,null,null,null,null,""]
[null,null,null,null,null,null,null,null,null,""]
[null,null,null,null,null,null,null,null,null,""]
[null,null,null,null,null,null,null,null,null,""]
[null,null,null,null,null,null,null,null,null,""]
[null,null,null,null,null,null,null,null,null,""]
[null,null,null,null,null,null,null,null,null,""]
[null,null,null,null,null,null,null,null,null,""]
[null,null,null,null,null,null,null,null,null,""]
[null,null,null,null,null,null,null,null,null,""]
[null,null,null,null,null,null,null,null,null,""]
[null,null,null,null,null,null,null,null,null,""]
[null,null,null,null,null,null,null,null,null,""]
[null,null,null,null,null,null,null,null,null,""]
[null,null,null,null,null,null,null,null,null,""]
[null,null,null,null,null,null,null,null,null,""]
[null,null,null,null,null,null,null,null,null,""]
[null,null,null,null,null,null,null,null,null,""]
[null,null,null,null,null,null,null,null,null,""]
[null,null,null,null,null,null,null,null,null,""]
[null,null,null,null,null,null,null,null,null,""]
[null,null,null,null,null,null,null,null,null,""]
[null,null,null,null,null,null,null,null,null,""]
[null,null,null,null,null,null,null,null,null,""]
[null,null,null,null,null,null,null,null,null,""]
[null,null,null,null,null,null,null,null,null,""]
[null,null,null,null,null,null,null,null,null,""]
[null,null,null,null,null,null,null,null,null,""]
[null,null,null,null,null,null,null,null,null,""]
[null,null,null,null,null,null,null,null,null,""]
[null,null,null,null,null,null,null,null,null,""]
[null,null,null,null,null,null,null,null,null,""]
[null,null,null,null,null,null,null,null,null,""]
[null,null,null,null,null,null,null,null,null,""]
[null,null,null,null,null,null,null,null,null,""]
[null,null,null,null,null,null,null,null,null,""]
[null,null,null,null,null,null,null,null,null,""]
[null,null,null,null,null,null,null,null,null,""]
[null,null,null,null,null,null,null,null,null,""]
[null,null,null,null,null,null,null,null,null,""]
[null,null,null,null,null,null,null,null,null,""]
[null,null,null,null,null,null,null,null,null,""]
[null,null,null,null,null,null,null,null,null,""]
[null,null,null,null,null,null,null,null,null,""]
[null,null,null,null,null,null,null,null,null,""]
[null,null,null,null,null,null,null,null,null,""]
[null,null,null,null,null,null,null,null,null,""]
[null,null,null,null,null,null,null,null,null,""]
[null,null,null,null,null,null,null,null,null,""]
[null,null,null,null,null,null,null,null,null,""]
[null,null,null,null,null,null,null,null,null,""]
[null,null,null,null,null,null,null,null,null,""]
[null,null,null,null,null,null,null,null,null,""]
[null,null,null,null,null,null,null,null,null,""]
[null,null,null,null,null,null,null,null,null,""]
[null,null,null,null,null,null,null,null,null,""]
[null,null,null,null,null,null,null,null,null,""]
[null,null,null,null,null,null,null,null,null,""]
[null,null,null,null,null,null,null,null,null,""]
[null,null,null,null,null,null,null,null,null,""]
[null,null,null,null,null,null,null,null,null,""]
[null,null,null,null,null,null,null,null,null,""]
[null,null,null,null,null,null,null,null,null,""]
[null,null,null,null,null,null,null,null,null,""]
[null,null,null,null,null,null,null,null,null,""]
[null,null,null,null,null,null,null,null,null,""]
[null,null,null,null,null,null,null,null,null,""]
[null,null,null,null,null,null,null,null,null,""]
[null,null,null,null,null,null,null,null,null,""]
[null,null,null,null,null,null,null,null,null,""]
[null,null,null,null,null,null,null,null,null,""]
[null,null,null,null,null,null,null,null,null,""]
[null,null,null,null,null,null,null,null,null,""]
[null,null,null,null,null,null,null,null,null,""]
[null,null,null,null,null,null,null,null,null,""]
[null,null,null,null,null,null,null,null,null,""]
[null,null,null,null,null,null,null,null,null,""]
[null,null,null,null,null,null,null,null,null,""]
[null,null,null,null,null,null,null,null,null,""]
[null,null,null,null,null,null,null,null,null,""]
[null,null,null,null,null,null,null,null,null,""]
[null,null,null,null,null,null,null,null,null,""]
[null,null,null,null,null,null,null,null,null,""]
[null,null,null,null,null,null,null,null,null,""]
[null,null,null,null,null,null,null,null,null,""]
[null,null,null,null,null,null,null,null,null,""]
[null,null,null,null,null,null,null,null,null,""]
[null,null,null,null,null,null,null,null,null,""]
[null,null,null,null,null,null,null,null,null,""]
[null,null,null,null,null,null,null,null,null,""]
[null,null,null,null,null,null,null,null,null,""]
[null,null,null,null,null,null,null,null,null,""]
[null,null,null,null,null,null,null,null,null,""]
[null,null,null,null,null,null,null,null,null,""]
[null,null,null,null,null,null,null,null,null,""]
[null,null,null,null,null,null,null,null,null,""]
[null,null,null,null,null,null,null,null,null,""]
[null,null,null,null,null,null,null,null,null,""]
[null,null,null,null,null,null,null,null,null,""]
[null,null,null,null,null,null,null,null,null,""]
[null,null,null,null,null,null,null,null,null,""]
[null,null,null,null,null,null,null,null,null,""]
[null,null,null,null,null,null,null,null,null,""]
[null,null,null,null,null,null,null,null,null,""]
[null,null,null,null,null,null,null,null,null,""]
[null,null,null,null,null,null,null,null,null,""]
[null,null,null,null,null,null,null,null,null,""]
[null,null,null,null,null,null,null,null,null,""]
[null,null,null,null,null,null,null,null,null,""]
[null,null,null,null,null,null,null,null,null,""]
[null,null,null,null,null,null,null,null,null,""]
[null,null,null,null,null,null,null,null,null,""]
[null,null,null,null,null,null,null,null,null,""]
[null,null,null,null,null,null,null,null,null,""]
[null,null,null,null,null,null,null,null,null,""]
[null,null,null,null,null,null,null,null,null,""]
[null,null,null,null,null,null,null,null,null,""]
[null,null,null,null,null,null,null,null,null,""]
[null,null,null,null,null,null,null,null,null,""]
[null,null,null,null,null,null,null,null,null,""]
[null,null,null,null,null,null,null,null,null,""]
[null,null,null,null,null,null,null,null,null,""]
[null,null,null,null,null,null,null,null,null,""]
[null,null,null,null,null,null,null,null,null,""]
[null,null,null,null,null,null,null,null,null,""]
[null,null,null,null,null,null,null,null,null,""]
[null,null,null,null,null,null,null,null,null,""]
[null,null,null,null,null,null,null,null,null,""]
[null,null,null,null,null,null,null,null,null,""]
[null,null,null,null,null,null,null,null,null,""]
[null,null,null,null,null,null,null,null,null,""]
[null,null,null,null,null,null,null,null,null,""]
[null,null,null,null,null,null,null,null,null,""]
[null,null,null,null,null,null,null,null,null,""]
[null,null,null,null,null,null,null,null,null,""]
[null,null,null,null,null,null,null,null,null,""]
[null,null,null,null,null,null,null,null,null,""]
[null,null,null,null,null,null,null,null,null,""]
[null,null,null,null,null,null,null,null,null,""]
[null,null,null,null,null,null,null,null,null,""]
[null,null,null,null,null,null,null,null,null,""]
[null,null,null,null,null,null,null,null,null,""]
[null,null,null,null,null,null,null,null,null,""]
[null,null,null,null,null,null,null,null,null,""]
[null,null,null,null,null,null,null,null,null,""]
[null,null,null,null,null,null,null,null,null,""]
[null,null,null,null,null,null,null,null,null,""]
[null,null,null,null,null,null,null,null,null,""]
[null,null,null,null,null,null,null,null,null,""]
[null,null,null,null,null,null,null,null,null,""]
[null,null,null,null,null,null,null,null,null,""]
[null,null,null,null,null,null,null,null,null,""]
[null,null,null,null,null,null,null,null,null,""]
[null,null,null,null,null,null,null,null,null,""]
[null,null,null,null,null,null,null,null,null,""]
[null,null,null,null,null,null,null,null,null,""]
[null,null,null,null,null,null,null,null,null,""]
[null,null,null,null,null,null,null,null,null,""]
[null,null,null,null,null,null,null,null,null,""]
[null,null,null,null,null,null,null,null,null,""]
[null,null,null,null,null,null,null,null,null,""]
[null,null,null,null,null,null,null,null,null,""]
[null,null,null,null,null,null,null,null,null,""]
[null,null,null,null,null,null,null,null,null,""]
[null,null,null,null,null,null,null,null,null,""]
[null,null,null,null,null,null,null,null,null,""]
[null,null,null,null,null,null,null,null,null,""]
[null,null,null,null,null,null,null,null,null,""]
[null,null,null,null,null,null,null,null,null,""]
[null,null,null,null,null,null,null,null,null,""]
[null,null,null,null,null,null,null,null,null,""]
[null,null,null,null,null,null,null,null,null,""]
[null,null,null,null,null,null,null,null,null,""]
[null,null,null,null,null,null,null,null,null,""]
[null,null,null,null,null,null,null,null,null,""]
[null,null,null,null,null,null,null,null,null,""]
[null,null,null,null,null,null,null,null,null,""]
[null,null,null,null,null,null,null,null,null,""]
[null,null,null,null,null,null,null,null,null,""]
[null,null,null,null,null,null,null,null,null,""]
[null,null,null,null,null,null,null,null,null,""]
[null,null,null,null,null,null,null,null,null,""]
[null,null,null,null,null,null,null,null,null,""]
[null,null,null,null,null,null,null,null,null,""]
[null,null,null,null,null,null,null,null,null,""]
[null,null,null,null,null,null,null,null,null,""]
[null,null,null,null,null,null,null,null,null,""]
[null,null,null,null,null,null,null,null,null,""]
[null,null,null,null,null,null,null,null,null,""]
[null,null,null,null,null,null,null,null,null,""]
[null,null,null,null,null,null,null,null,null,""]
[null,null,null,null,null,null,null,null,null,""]
[null,null,null,null,null,null,null,null,null,""]
[null,null,null,null,null,null,null,null,null,""]
[null,null,null,null,null,null,null,null,null,""]
[null,null,null,null,null,null,null,null,null,""]
[null,null,null,null,null,null,null,null,null,""]
[null,null,null,null,null,null,null,null,null,""]
[null,null,null,null,null,null,null,null,null,""]
[null,null,null,null,null,null,null,null,null,""]
[null,null,null,null,null,null,null,null,null,""]
[null,null,null,null,null,null,null,null,null,""]
[null,null,null,null,null,null,null,null,null,""]
[null,null,null,null,null,null,null,null,null,""]
[null,null,null,null,null,null,null,null,null,""]
[null,null,null,null,null,null,null,null,null,""]
[null,null,null,null,null,null,null,null,null,""]
[null,null,null,null,null,null,null,null,null,""]
[null,null,null,null,null,null,null,null,null,""]
[null,null,null,null,null,null,null,null,null,""]
[null,null,null,null,null,null,null,null,null,""]
[null,null,null,null,null,null,null,null,null,""]
[null,null,null,null,null,null,null,null,null,""]
[null,null,null,null,null,null,null,null,null,""]
[null,null,null,null,null,null,null,null,null,""]
[null,null,null,null,null,null,null,null,null,""]
[null,null,null,null,null,null,null,null,null,""]
[null,null,null,null,null,null,null,null,null,""]
[null,null,null,null,null,null,null,null,null,""]
[null,null,null,null,null,null,null,null,null,""]
[null,null,null,null,null,null,null,null,null,""]
[null,null,null,null,null,null,null,null,null,""]
[null,null,null,null,null,null,null,null,null,""]
[null,null,null,null,null,null,null,null,null,""]
[null,null,null,null,null,null,null,null,null,""]
[null,null,null,null,null,null,null,null,null,""]
[null,null,null,null,null,null,null,null,null,""]
[null,null,null,null,null,null,null,null,null,""]
[null,null,null,null,null,null,null,null,null,""]
[null,null,null,null,null,null,null,null,null,""]
[null,null,null,null,null,null,null,null,null,""]
[null,null,null,null,null,null,null,null,null,""]
[null,null,null,null,null,null,null,null,null,""]
[null,null,null,null,null,null,null,null,null,""]
[null,null,null,null,null,null,null,null,null,""]
[null,null,null,null,null,null,null,null,null,""]
[null,null,null,null,null,null,null,null,null,""]
[null,null,null,null,null,null,null,null,null,""]
[null,null,null,null,null,null,null,null,null,""]
[null,null,null,null,null,null,null,null,null,""]
[null,null,null,null,null,null,null,null,null,""]
[null,null,null,null,null,null,null,null,null,""]
[null,null,null,null,null,null,null,null,null,""]
[null,null,null,null,null,null,null,null,null,""]
[null,null,null,null,null,null,null,null,null,""]
[null,null,null,null,null,null,null,null,null,""]
[null,null,null,null,null,null,null,null,null,""]
[null,null,null,null,null,null,null,null,null,""]
[null,null,null,null,null,null,null,null,null,""]
[null,null,null,null,null,null,null,null,null,""]
[null,null,null,null,null,null,null,null,null,""]
[null,null,null,null,null,null,null,null,null,""]
[null,null,null,null,null,null,null,null,null,""]
[null,null,null,null,null,null,null,null,null,""]
[null,null,null,null,null,null,null,null,null,""]
[null,null,null,null,null,null,null,null,null,""]
[null,null,null,null,null,null,null,null,null,""]
[null,null,null,null,null,null,null,null,null,""]
[null,null,null,null,null,null,null,null,null,""]
[null,null,null,null,null,null,null,null,null,""]
[null,null,null,null,null,null,null,null,null,""]
[null,null,null,null,null,null,null,null,null,""]
[null,null,null,null,null,null,null,null,null,""]
[null,null,null,null,null,null,null,null,null,""]
[null,null,null,null,null,null,null,null,null,""]
[null,null,null,null,null,null,null,null,null,""]
[null,null,null,null,null,null,null,null,null,""]
[null,null,null,null,null,null,null,null,null,""]
[null,null,null,null,null,null,null,null,null,""]
[null,null,null,null,null,null,null,null,null,""]
[null,null,null,null,null,null,null,null,null,""]
[null,null,null,null,null,null,null,null,null,""]
[null,null,null,null,null,null,null,null,null,""]
[null,null,null,null,null,null,null,null,null,""]
[null,null,null,null,null,null,null,null,null,""]
[null,null,null,null,null,null,null,null,null,""]
[null,null,null,null,null,null,null,null,null,""]
[null,null,null,null,null,null,null,null,null,""]
[null,null,null,null,null,null,null,null,null,""]
[null,null,null,null,null,null,null,null,null,""]
[null,null,null,null,null,null,null,null,null,""]
[null,null,null,null,null,null,null,null,null,""]
[null,null,null,null,null,null,null,null,null,""]
[null,null,null,null,null,null,null,null,null,""]
[null,null,null,null,null,null,null,null,null,""]
[null,null,null,null,null,null,null,null,null,""]
[null,null,null,null,null,null,null,null,null,""]
[null,null,null,null,null,null,null,null,null,""]
[null,null,null,null,null,null,null,null,null,""]
[null,null,null,null,null,null,null,null,null,""]
[null,null,null,null,null,null,null,null,null,""]
[null,null,null,null,null,null,null,null,null,""]
[null,null,null,null,null,null,null,null,null,""]
[null,null,null,null,null,null,null,null,null,""]
[null,null,null,null,null,null,null,null,null,""]
[null,null,null,null,null,null,null,null,null,""]
[null,null,null,null,null,null,null,null,null,""]
[null,null,null,null,null,null,null,null,null,""]
[null,null,null,null,null,null,null,null,null,""]
[null,null,null,null,null,null,null,null,null,""]
[null,null,null,null,null,null,null,null,null,""]
[null,null,null,null,null,null,null,null,null,""]
[null,null,null,null,null,null,null,null,null,""]
[null,null,null,null,null,null,null,null,null,""]
[null,null,null,null,null,null,null,null,null,""]
[null,null,null,null,null,null,null,null,null,""]
[null,null,null,null,null,null,null,null,null,""]
[null,null,null,null,null,null,null,null,null,""]
[null,null,null,null,null,null,null,null,null,""]
[null,null,null,null,null,null,null,null,null,""]
[null,null,null,null,null,null,null,null,null,""]
[null,null,null,null,null,null,null,null,null,""]
[null,null,null,null,null,null,null,null,null,""]
[null,null,null,null,null,null,null,null,null,""]
[null,null,null,null,null,null,null,null,null,""]
[null,null,null,null,null,null,null,null,null,""]
[null,null,null,null,null,null,null,null,null,""]
[null,null,null,null,null,null,null,null,null,""]
[null,null,null,null,null,null,null,null,null,""]
[null,null,null,null,null,null,null,null,null,""]
[null,null,null,null,null,null,null,null,null,""]
[null,null,null,null,null,null,null,null,null,""]
[null,null,null,null,null,null,null,null,null,""]
[null,null,null,null,null,null,null,null,null,""]
[null,null,null,null,null,null,null,null,null,""]
[null,null,null,null,null,null,null,null,null,""]
[null,null,null,null,null,null,null,null,null,""]
[null,null,null,null,null,null,null,null,null,""]
[null,null,null,null,null,null,null,null,null,""]
[null,null,null,null,null,null,null,null,null,""]
[null,null,null,null,null,null,null,null,null,""]
[null,null,null,null,null,null,null,null,null,""]
[null,null,null,null,null,null,null,null,null,""]
[null,null,null,null,null,null,null,null,null,""]
[null,null,null,null,null,null,null,null,null,""]
[null,null,null,null,null,null,null,null,null,""]
[null,null,null,null,null,null,null,null,null,""]
[null,null,null,null,null,null,null,null,null,""]
[null,null,null,null,null,null,null,null,null,""]
[null,null,null,null,null,null,null,null,null,""]
[null,null,null,null,null,null,null,null,null,""]
[null,null,null,null,null,null,null,null,null,""]
[null,null,null,null,null,null,null,null,null,""]
[null,null,null,null,null,null,null,null,null,""]
[null,null,null,null,null,null,null,null,null,""]
[null,null,null,null,null,null,null,null,null,""]
[null,null,null,null,null,null,null,null,null,""]
[null,null,null,null,null,null,null,null,null,""]
[null,null,null,null,null,null,null,null,null,""]
[null,null,null,null,null,null,null,null,null,""]
[null,null,null,null,null,null,null,null,null,""]
[null,null,null,null,null,null,null,null,null,""]
[null,null,null,null,null,null,null,null,null,""]
[null,null,null,null,null,null,null,null,null,""]
[null,null,null,null,null,null,null,null,null,""]
[null,null,null,null,null,null,null,null,null,""]
[null,null,null,null,null,null,null,null,null,""]
[null,null,null,null,null,null,null,null,null,""]
[null,null,null,null,null,null,null,null,null,""]
[null,null,null,null,null,null,null,null,null,""]
[null,null,null,null,null,null,null,null,null,""]
[null,null,null,null,null,null,null,null,null,""]
[null,null,null,null,null,null,null,null,null,""]
[null,null,null,null,null,null,null,null,null,""]
[null,null,null,null,null,null,null,null,null,""]
[null,null,null,null,null,null,null,null,null,""]
[null,null,null,null,null,null,null,null,null,""]
[null,null,null,null,null,null,null,null,null,""]
[null,null,null,null,null,null,null,null,null,""]
[null,null,null,null,null,null,null,null,null,""]
[null,null,null,null,null,null,null,null,null,""]
[null,null,null,null,null,null,null,null,null,""]
[null,null,null,null,null,null,null,null,null,""]
[null,null,null,null,null,null,null,null,null,""]
[null,null,null,null,null,null,null,null,null,""]
[null,null,null,null,null,null,null,null,null,""]
[null,null,null,null,null,null,null,null,null,""]
[null,null,null,null,null,null,null,null,null,""]
[null,null,null,null,null,null,null,null,null,""]
[null,null,null,null,null,null,null,null,null,""]
[null,null,null,null,null,null,null,null,null,""]
[null,null,null,null,null,null,null,null,null,""]
[null,null,null,null,null,null,null,null,null,""]
[null,null,null,null,null,null,null,null,null,""]
[null,null,null,null,null,null,null,null,null,""]
[null,null,null,null,null,null,null,null,null,""]
[null,null,null,null,null,null,null,null,null,""]
[null,null,null,null,null,null,null,null,null,""]
[null,null,null,null,null,null,null,null,null,""]
[null,null,null,null,null,null,null,null,null,""]
[null,null,null,null,null,null,null,null,null,""]
[null,null,null,null,null,null,null,null,null,""]
[null,null,null,null,null,null,null,null,null,""]
[null,null,null,null,null,null,null,null,null,""]
[null,null,null,null,null,null,null,null,null,""]
[null,null,null,null,null,null,null,null,null,""]
[null,null,null,null,null,null,null,null,null,""]
[null,null,null,null,null,null,null,null,null,""]
[null,null,null,null,null,null,null,null,null,""]
[null,null,null,null,null,null,null,null,null,""]
[null,null,null,null,null,null,null,null,null,""]
[null,null,null,null,null,null,null,null,null,""]
[null,null,null,null,null,null,null,null,null,""]
[null,null,null,null,null,null,null,null,null,""]
[null,null,null,null,null,null,null,null,null,""]
[null,null,null,null,null,null,null,null,null,""]
[null,null,null,null,null,null,null,null,null,""]
[null,null,null,null,null,null,null,null,null,""]
[null,null,null,null,null,null,null,null,null,""]
[null,null,null,null,null,null,null,null,null,""]
[null,null,null,null,null,null,null,null,null,""]
[null,null,null,null,null,null,null,null,null,""]
[null,null,null,null,null,null,null,null,null,""]
[null,null,null,null,null,null,null,null,null,""]
[null,null,null,null,null,null,null,null,null,""]
[null,null,null,null,null,null,null,null,null,""]
[null,null,null,null,null,null,null,null,null,""]
[null,null,null,null,null,null,null,null,null,""]
[null,null,null,null,null,null,null,null,null,""]
[null,null,null,null,null,null,null,null,null,""]
[null,null,null,null,null,null,null,null,null,""]
[null,null,null,null,null,null,null,null,null,""]
[null,null,null,null,null,null,null,null,null,""]
[null,null,null,null,null,null,null,null,null,""]
[null,null,null,null,null,null,null,null,null,""]
[null,null,null,null,null,null,null,null,null,""]
[null,null,null,null,null,null,null,null,null,""]
[null,null,null,null,null,null,null,null,null,""]
[null,null,null,null,null,null,null,null,null,""]
[null,null,null,null,null,null,null,null,null,""]
[null,null,null,null,null,null,null,null,null,""]
[null,null,null,null,null,null,null,null,null,""]
[null,null,null,null,null,null,null,null,null,""]
[null,null,null,null,null,null,null,null,null,""]
[null,null,null,null,null,null,null,null,null,""]
[null,null,null,null,null,null,null,null,null,""]
[null,null,null,null,null,null,null,null,null,""]
[null,null,null,null,null,null,null,null,null,""]
[null,null,null,null,null,null,null,null,null,""]
[null,null,null,null,null,null,null,null,null,""]
[null,null,null,null,null,null,null,null,null,""]
[null,null,null,null,null,null,null,null,null,""]
[null,null,null,null,null,null,null,null,null,""]
[null,null,null,null,null,null,null,null,null,""]
[null,null,null,null,null,null,null,null,null,""]
[null,null,null,null,null,null,null,null,null,""]
[null,null,null,null,null,null,null,null,null,""]
[null,null,null,null,null,null,null,null,null,""]
[null,null,null,null,null,null,null,null,null,""]
[null,null,null,null,null,null,null,null,null,""]
[null,null,null,null,null,null,null,null,null,""]
[null,null,null,null,null,null,null,null,null,""]
[null,null,null,null,null,null,null,null,null,""]
[null,null,null,null,null,null,null,null,null,""]
[null,null,null,null,null,null,null,null,null,""]
[null,null,null,null,null,null,null,null,null,""]
[null,null,null,null,null,null,null,null,null,""]
[null,null,null,null,null,null,null,null,null,""]
[null,null,null,null,null,null,null,null,null,""]
[null,null,null,null,null,null,null,null,null,""]
[null,null,null,null,null,null,null,null,null,""]
[null,null,null,null,null,null,null,null,null,""]
[null,null,null,null,null,null,null,null,null,""]
[null,null,null,null,null,null,null,null,null,""]
[null,null,null,null,null,null,null,null,null,""]
[null,null,null,null,null,null,null,null,null,""]
[null,null,null,null,null,null,null,null,null,""]
[null,null,null,null,null,null,null,null,null,""]
[null,null,null,null,null,null,null,null,null,""]
[null,null,null,null,null,null,null,null,null,""]
[null,null,null,null,null,null,null,null,null,""]
[null,null,null,null,null,null,null,null,null,""]
[null,null,null,null,null,null,null,null,null,""]
[null,null,null,null,null,null,null,null,null,""]
[null,null,null,null,null,null,null,null,null,""]
[null,null,null,null,null,null,null,null,null,""]
[null,null,null,null,null,null,null,null,null,""]
[null,null,null,null,null,null,null,null,null,""]
[null,null,null,null,null,null,null,null,null,""]
[null,null,null,null,null,null,null,null,null,""]
[null,null,null,null,null,null,null,null,null,""]
[null,null,null,null,null,null,null,null,null,""]
[null,null,null,null,null,null,null,null,null,""]
[null,null,null,null,null,null,null,null,null,""]
[null,null,null,null,null,null,null,null,null,""]
[null,null,null,null,null,null,null,null,null,""]
[null,null,null,null,null,null,null,null,null,""]
[null,null,null,null,null,null,null,null,null,""]
[null,null,null,null,null,null,null,null,null,""]
[null,null,null,null,null,null,null,null,null,""]
[null,null,null,null,null,null,null,null,null,""]
[null,null,null,null,null,null,null,null,null,""]
[null,null,null,null,null,null,null,null,null,""]
[null,null,null,null,null,null,null,null,null,""]
[null,null,null,null,null,null,null,null,null,""]
[null,null,null,null,null,null,null,null,null,""]
[null,null,null,null,null,null,null,null,null,""]
[null,null,null,null,null,null,null,null,null,""]
[null,null,null,null,null,null,null,null,null,""]
[null,null,null,null,null,null,null,null,null,""]
[null,null,null,null,null,null,null,null,null,""]
[null,null,null,null,null,null,null,null,null,""]
[null,null,null,null,null,null,null,null,null,""]
[null,null,null,null,null,null,null,null,null,""]
[null,null,null,null,null,null,null,null,null,""]
[null,null,null,null,null,null,null,null,null,""]
[null,null,null,null,null,null,null,null,null,""]
[null,null,null,null,null,null,null,null,null,""]
[null,null,null,null,null,null,null,null,null,""]
[null,null,null,null,null,null,null,null,null,""]
[null,null,null,null,null,null,null,null,null,""]
[null,null,null,null,null,null,null,null,null,""]
[null,null,null,null,null,null,null,null,null,""]
[null,null,null,null,null,null,null,null,null,""]
[null,null,null,null,null,null,null,null,null,""]
[null,null,null,null,null,null,null,null,null,""]
[null,null,null,null,null,null,null,null,null,""]
[null,null,null,null,null,null,null,null,null,""]
[null,null,null,null,null,null,null,null,null,""]
[null,null,null,null,null,null,null,null,null,""]
[null,null,null,null,null,null,null,null,null,""]
[null,null,null,null,null,null,null,null,null,""]
[null,null,null,null,null,null,null,null,null,""]
[null,null,null,null,null,null,null,null,null,""]
[null,null,null,null,null,null,null,null,null,""]
[null,null,null,null,null,null,null,null,null,""]
[null,null,null,null,null,null,null,null,null,""]
[null,null,null,null,null,null,null,null,null,""]
[null,null,null,null,null,null,null,null,null,""]
[null,null,null,null,null,null,null,null,null,""]
[null,null,null,null,null,null,null,null,null,""]
[null,null,null,null,null,null,null,null,null,""]
[null,null,null,null,null,null,null,null,null,""]
[null,null,null,null,null,null,null,null,null,""]
[null,null,null,null,null,null,null,null,null,""]
[null,null,null,null,null,null,null,null,null,""]
[null,null,null,null,null,null,null,null,null,""]
[null,null,null,null,null,null,null,null,null,""]
[null,null,null,null,null,null,null,null,null,""]
[null,null,null,null,null,null,null,null,null,""]
[null,null,null,null,null,null,null,null,null,""]
[null,null,null,null,null,null,null,null,null,""]
[null,null,null,null,null,null,null,null,null,""]
[null,null,null,null,null,null,null,null,null,""]
[null,null,null,null,null,null,null,null,null,""]
[null,null,null,null,null,null,null,null,null,""]
[null,null,null,null,null,null,null,null,null,""]
[null,null,null,null,null,null,null,null,null,""]
[null,null,null,null,null,null,null,null,null,""]
[null,null,null,null,null,null,null,null,null,""]
[null,null,null,null,null,null,null,null,null,""]
[null,null,null,null,null,null,null,null,null,""]
[null,null,null,null,null,null,null,null,null,""]
[null,null,null,null,null,null,null,null,null,""]
[null,null,null,null,null,null,null,null,null,""]
[null,null,null,null,null,null,null,null,null,""]
[null,null,null,null,null,null,null,null,null,""]
[null,null,null,null,null,null,null,null,null,""]
[null,null,null,null,null,null,null,null,null,""]
[null,null,null,null,null,null,null,null,null,""]
[null,null,null,null,null,null,null,null,null,""]
[null,null,null,null,null,null,null,null,null,""]
[null,null,null,null,null,null,null,null,null,""]
[null,null,null,null,null,null,null,null,null,""]
[null,null,null,null,null,null,null,null,null,""]
[null,null,null,null,null,null,null,null,null,""]
[null,null,null,null,null,null,null,null,null,""]
[null,null,null,null,null,null,null,null,null,""]
[null,null,null,null,null,null,null,null,null,""]
[null,null,null,null,null,null,null,null,null,""]
[null,null,null,null,null,null,null,null,null,""]
[null,null,null,null,null,null,null,null,null,""]
[null,null,null,null,null,null,null,null,null,""]
[null,null,null,null,null,null,null,null,null,""]
[null,null,null,null,null,null,null,null,null,""]
[null,null,null,null,null,null,null,null,null,""]
[null,null,null,null,null,null,null,null,null,""]
[null,null,null,null,null,null,null,null,null,""]
[null,null,null,null,null,null,null,null,null,""]
[null,null,null,null,null,null,null,null,null,""]
[null,null,null,null,null,null,null,null,null,""]
[null,null,null,null,null,null,null,null,null,""]
[null,null,null,null,null,null,null,null,null,""]
[null,null,null,null,null,null,null,null,null,""]
[null,null,null,null,null,null,null,null,null,""]
[null,null,null,null,null,null,null,null,null,""]
[null,null,null,null,null,null,null,null,null,""]
[null,null,null,null,null,null,null,null,null,""]
[null,null,null,null,null,null,null,null,null,""]
[null,null,null,null,null,null,null,null,null,""]
[null,null,null,null,null,null,null,null,null,""]
[null,null,null,null,null,null,null,null,null,""]
[null,null,null,null,null,null,null,null,null,""]
[null,null,null,null,null,null,null,null,null,""]
[null,null,null,null,null,null,null,null,null,""]
[null,null,null,null,null,null,null,null,null,""]
[null,null,null,null,null,null,null,null,null,""]
[null,null,null,null,null,null,null,null,null,""]
[null,null,null,null,null,null,null,null,null,""]
[null,null,null,null,null,null,null,null,null,""]
[null,null,null,null,null,null,null,null,null,""]
[null,null,null,null,null,null,null,null,null,""]
[null,null,null,null,null,null,null,null,null,""]
[null,null,null,null,null,null,null,null,null,""]
[null,null,null,null,null,null,null,null,null,""]
[null,null,null,null,null,null,null,null,null,""]
[null,null,null,null,null,null,null,null,null,""]
[null,null,null,null,null,null,null,null,null,""]
[null,null,null,null,null,null,null,null,null,""]
[null,null,null,null,null,null,null,null,null,""]
[null,null,null,null,null,null,null,null,null,""]
[null,null,null,null,null,null,null,null,null,""]
[null,null,null,null,null,null,null,null,null,""]
[null,null,null,null,null,null,null,null,null,""]
[null,null,null,null,null,null,null,null,null,""]
[null,null,null,null,null,null,null,null,null,""]
[null,null,null,null,null,null,null,null,null,""]
[null,null,null,null,null,null,null,null,null,""]
[null,null,null,null,null,null,null,null,null,""]
[null,null,null,null,null,null,null,null,null,""]
[null,null,null,null,null,null,null,null,null,""]
[null,null,null,null,null,null,null,null,null,""]
[null,null,null,null,null,null,null,null,null,""]
[null,null,null,null,null,null,null,null,null,""]
[null,null,null,null,null,null,null,null,null,""]
[null,null,null,null,null,null,null,null,null,""]
[null,null,null,null,null,null,null,null,null,""]
[null,null,null,null,null,null,null,null,null,""]
[null,null,null,null,null,null,null,null,null,""]
[null,null,null,null,null,null,null,null,null,""]
[null,null,null,null,null,null,null,null,null,""]
[null,null,null,null,null,null,null,null,null,""]
[null,null,null,null,null,null,null,null,null,""]
[null,null,null,null,null,null,null,null,null,""]
[null,null,null,null,null,null,null,null,null,""]
[null,null,null,null,null,null,null,null,null,""]
[null,null,null,null,null,null,null,null,null,""]
[null,null,null,null,null,null,null,null,null,""]
[null,null,null,null,null,null,null,null,null,""]
[null,null,null,null,null,null,null,null,null,""]
[null,null,null,null,null,null,null,null,null,""]
[null,null,null,null,null,null,null,null,null,""]
[null,null,null,null,null,null,null,null,null,""]
[null,null,null,null,null,null,null,null,null,""]
[null,null,null,null,null,null,null,null,null,""]
[null,null,null,null,null,null,null,null,null,""]
[null,null,null,null,null,null,null,null,null,""]
[null,null,null,null,null,null,null,null,null,""]
[null,null,null,null,null,null,null,null,null,""]
[null,null,null,null,null,null,null,null,null,""]
[null,null,null,null,null,null,null,null,null,""]
[null,null,null,null,null,null,null,null,null,""]
[null,null,null,null,null,null,null,null,null,""]
[null,null,null,null,null,null,null,null,null,""]
[null,null,null,null,null,null,null,null,null,""]
[null,null,null,null,null,null,null,null,null,""]
[null,null,null,null,null,null,null,null,null,""]
[null,null,null,null,null,null,null,null,null,""]
[null,null,null,null,null,null,null,null,null,""]
[null,null,null,null,null,null,null,null,null,""]
[null,null,null,null,null,null,null,null,null,""]
[null,null,null,null,null,null,null,null,null,""]
[null,null,null,null,null,null,null,null,null,""]
[null,null,null,null,null,null,null,null,null,""]
[null,null,null,null,null,null,null,null,null,""]
[null,null,null,null,null,null,null,null,null,""]
[null,null,null,null,null,null,null,null,null,""]
[null,null,null,null,null,null,null,null,null,""]
[null,null,null,null,null,null,null,null,null,""]
[null,null,null,null,null,null,null,null,null,""]
[null,null,null,null,null,null,null,null,null,""]
[null,null,null,null,null,null,null,null,null,""]
[null,null,null,null,null,null,null,null,null,""]
[null,null,null,null,null,null,null,null,null,""]
[null,null,null,null,null,null,null,null,null,""]
[null,null,null,null,null,null,null,null,null,""]
[null,null,null,null,null,null,null,null,null,""]
[null,null,null,null,null,null,null,null,null,""]
[null,null,null,null,null,null,null,null,null,""]
[null,null,null,null,null,null,null,null,null,""]
[null,null,null,null,null,null,null,null,null,""]
[null,null,null,null,null,null,null,null,null,""]
[null,null,null,null,null,null,null,null,null,""]
[null,null,null,null,null,null,null,null,null,""]
[null,null,null,null,null,null,null,null,null,""]
[null,null,null,null,null,null,null,null,null,""]
[null,null,null,null,null,null,null,null,null,""]
[null,null,null,null,null,null,null,null,null,""]
[null,null,null,null,null,null,null,null,null,""]
[null,null,null,null,null,null,null,null,null,""]
[null,null,null,null,null,null,null,null,null,""]
[null,null,null,null,null,null,null,null,null,""]
[null,null,null,null,null,null,null,null,null,""]
[null,null,null,null,null,null,null,null,null,""]
[null,null,null,null,null,null,null,null,null,""]
[null,null,null,null,null,null,null,null,null,""]
[null,null,null,null,null,null,null,null,null,""]
[null,null,null,null,null,null,null,null,null,""]
[null,null,null,null,null,null,null,null,null,""]
[null,null,null,null,null,null,null,null,null,""]
[null,null,null,null,null,null,null,null,null,""]
[null,null,null,null,null,null,null,null,null,""]
[null,null,null,null,null,null,null,null,null,""]
[null,null,null,null,null,null,null,null,null,""]
[null,null,null,null,null,null,null,null,null,""]
[null,null,null,null,null,null,null,null,null,""]
[null,null,null,null,null,null,null,null,null,""]
[null,null,null,null,null,null,null,null,null,""]
[null,null,null,null,null,null,null,null,null,""]
[null,null,null,null,null,null,null,null,null,""]
[null,null,null,null,null,null,null,null,null,""]
[null,null,null,null,null,null,null,null,null,""]
[null,null,null,null,null,null,null,null,null,""]
[null,null,null,null,null,null,null,null,null,""]
[null,null,null,null,null,null,null,null,null,""]
[null,null,null,null,null,null,null,null,null,""]
[null,null,null,null,null,null,null,null,null,""]
[null,null,null,null,null,null,null,null,null,""]
[null,null,null,null,null,null,null,null,null,""]
[null,null,null,null,null,null,null,null,null,""]
[null,null,null,null,null,null,null,null,null,""]
[null,null,null,null,null,null,null,null,null,""]
[null,null,null,null,null,null,null,null,null,""]
[null,null,null,null,null,null,null,null,null,""]
[null,null,null,null,null,null,null,null,null,""]
[null,null,null,null,null,null,null,null,null,""]
[null,null,null,null,null,null,null,null,null,""]
[null,null,null,null,null,null,null,null,null,""]
[null,null,null,null,null,null,null,null,null,""]
[null,null,null,null,null,null,null,null,null,""]
[null,null,null,null,null,null,null,null,null,""]
[null,null,null,null,null,null,null,null,null,""]
[null,null,null,null,null,null,null,null,null,""]
[null,null,null,null,null,null,null,null,null,""]
[null,null,null,null,null,null,null,null,null,""]
[null,null,null,null,null,null,null,null,null,""]
[null,null,null,null,null,null,null,null,null,""]
[null,null,null,null,null,null,null,null,null,""]
[null,null,null,null,null,null,null,null,null,""]
[null,null,null,null,null,null,null,null,null,""]
[null,null,null,null,null,null,null,null,null,""]
[null,null,null,null,null,null,null,null,null,""]
[null,null,null,null,null,null,null,null,null,""]
[null,null,null,null,null,null,null,null,null,""]
[null,null,null,null,null,null,null,null,null,""]
[null,null,null,null,null,null,null,null,null,""]
[null,null,null,null,null,null,null,null,null,""]
[null,null,null,null,null,null,null,null,null,""]
[null,null,null,null,null,null,null,null,null,""]
[null,null,null,null,null,null,null,null,null,""]
[null,null,null,null,null,null,null,null,null,""]
[null,null,null,null,null,null,null,null,null,""]
[null,null,null,null,null,null,null,null,null,""]
[null,null,null,null,null,null,null,null,null,""]
[null,null,null,null,null,null,null,null,null,""]
[null,null,null,null,null,null,null,null,null,""]
[null,null,null,null,null,null,null,null,null,""]
[null,null,null,null,null,null,null,null,null,""]
[null,null,null,null,null,null,null,null,null,""]
[null,null,null,null,null,null,null,null,null,""]
[null,null,null,null,null,null,null,null,null,""]
[null,null,null,null,null,null,null,null,null,""]
[null,null,null,null,null,null,null,null,null,""]
[null,null,null,null,null,null,null,null,null,""]
[null,null,null,null,null,null,null,null,null,""]
[null,null,null,null,null,null,null,null,null,""]
[null,null,null,null,null,null,null,null,null,""]
[null,null,null,null,null,null,null,null,null,""]
[null,null,null,null,null,null,null,null,null,""]
[null,null,null,null,null,null,null,null,null,""]
[null,null,null,null,null,null,null,null,null,""]
[null,null,null,null,null,null,null,null,null,""]
[null,null,null,null,null,null,null,null,null,""]
[null,null,null,null,null,null,null,null,null,""]
[null,null,null,null,null,null,null,null,null,""]
[null,null,null,null,null,null,null,null,null,""]
[null,null,null,null,null,null,null,null,null,""]
[null,null,null,null,null,null,null,null,null,""]
[null,null,null,null,null,null,null,null,null,""]
[null,null,null,null,null,null,null,null,null,""]
[null,null,null,null,null,null,null,null,null,""]
[null,null,null,null,null,null,null,null,null,""]
[null,null,null,null,null,null,null,null,null,""]
[null,null,null,null,null,null,null,null,null,""]
[null,null,null,null,null,null,null,null,null,""]
[null,null,null,null,null,null,null,null,null,""]
[null,null,null,null,null,null,null,null,null,""]
[null,null,null,null,null,null,null,null,null,""]
[null,null,null,null,null,null,null,null,null,""]
[null,null,null,null,null,null,null,null,null,""]
[null,null,null,null,null,null,null,null,null,""]
[null,null,null,null,null,null,null,null,null,""]
[null,null,null,null,null,null,null,null,null,""]
[null,null,null,null,null,null,null,null,null,""]
[null,null,null,null,null,null,null,null,null,""]
[null,null,null,null,null,null,null,null,null,""]
[null,null,null,null,null,null,null,null,null,""]

{"sheet":"Erhebungsbogen","index":7,"n_rows":38,"n_cols":14,"rows_kept":38,"cut":false,"hidden":false,"merged":[[37,12,37,13],[37,10,37,11],[37,1,37,9],[29,1,29,9],[29,10,29,11],[29,12,29,13],[16,8,16,9],[15,8,15,9],[14,8,14,9],[21,8,21,9],[20,8,20,9],[19,8,19,9],[18,8,18,9],[17,8,17,9],[24,6,24,7],[23,6,23,7],[22,6,22,7],[21,6,21,7],[20,6,20,7],[19,6,19,7],[19,12,19,13],[14,12,14,13],[18,12,18,13],[21,4,21,5],[3,5,3,6],[4,2,4,4],[4,5,4,6],[2,2,2,6],[10,2,10,5],[10,6,10,9],[11,2,11,3],[14,2,14,3],[13,2,13,3],[12,2,12,3],[13,6,13,7],[12,6,12,7],[11,6,11,7],[14,4,14,5],[13,4,13,5],[8,9,8,10],[4,0,4,1],[16,2,16,3],[15,2,15,3],[24,2,24,3],[16,6,16,7],[15,6,15,7],[14,6,14,7],[6,0,6,1],[8,0,8,1],[16,4,16,5],[15,4,15,5],[17,6,17,7],[23,2,23,3],[22,2,22,3],[21,2,21,3],[18,6,18,7],[17,12,17,13],[10,10,10,11],[23,12,23,13],[24,12,24,13],[2,8,2,10],[3,11,3,12],[4,11,4,12],[6,11,6,12],[3,7,3,8],[3,9,3,10],[4,7,4,8],[4,9,4,10],[1,13,3,13],[15,12,15,13],[16,12,16,13],[1,8,1,11],[1,2,1,7],[10,12,11,13],[12,12,12,13],[13,12,13,13],[8,2,8,4],[8,5,8,6],[8,7,8,8],[3,2,3,4],[8,11,8,12],[6,2,6,4],[6,5,6,6],[6,7,6,8],[6,9,6,10],[22,12,22,13],[35,1,35,9],[35,10,35,11],[35,12,35,13],[20,12,20,13],[21,12,21,13],[33,1,33,9],[33,10,33,11],[33,12,33,13],[31,1,31,9],[31,10,31,11],[27,10,27,11],[27,1,27,9],[25,10,25,11],[31,12,31,13],[27,12,27,13],[25,0,25,1],[25,12,25,13],[25,2,25,5],[1,0,1,1],[25,6,25,9],[24,4,24,5],[23,4,23,5],[22,4,22,5],[24,8,24,9],[0,0,0,9],[24,0,24,1],[20,2,20,3],[20,4,20,5],[10,0,11,1],[12,8,12,9],[11,4,11,5],[12,4,12,5],[11,8,11,9],[13,8,13,9],[19,4,19,5],[18,4,18,5],[17,4,17,5],[23,8,23,9],[22,8,22,9],[19,2,19,3],[18,2,18,3],[17,2,17,3]]}
["Jugenderhebungsbogen Erhebungsjahr",null,null,null,null,null,null,null,null,null,{"$f":"Deckblatt!A3","v":"2024"}]
["Verein:",null,{"$f":"Deckblatt!A5","v":"(Vereinsname eintragen)"},null,null,null,null,null,{"$f":"Deckblatt!B5","v":"(Vereinsort eintragen)"},null,null,null,null,"Jugendleiter seit:"]
[null,null,"Regierungsbezirk:",null,null,null,null,{"$f":"IF(I3=\"Oberbayern\",\"1\",IF(I3=\"Niederbayern\",\"2\",IF(I3=\"Oberfranken\",\"4\",IF(I3=\"Mittelfranken\",\"5\",IF(I3=\"Unterfranken\",\"6\",IF(I3=\"Oberpfalz\",\"3\",IF(I3=\"Schwaben\",\"7\",\"\")))))))","v":""},{"$f":"Deckblatt!B7","v":"(Regierungsbezirk auswählen)"}]
[null,null,"Name, Vorname",null,null,"Straße, Nr.",null,"PLZ,Ort",null,"Telefon",null,"Email"]
["Jugendleiter:"]
[]
["Stellvertreter:"]
[]
["Stellvertreter:"]
[]
["Gruppen/ Sachgebiete",null,"3 bis 15 Jahre",null,null,null,"16 bis einschl. 26 Jahre",null,null,null,"Summe in der Gruppe",null,"Gruppe Gesamt"]
[null,null,"Deandl",null,"Buam",null,"Deandl",null,"Buam",null,"Deandl","Buam"]
[1,"Jugendliche von 3 bis einschl. 26 Jahre",{"$f":"COUNTIFS(Deandl!$J:$J,\"x\",Deandl!$E:$E,\"<=15\",Deandl!$E:$E,\">=3\")","v":0},null,{"$f":"COUNTIFS(Buam!$J:$J,\"x\",Buam!$E:$E,\"<=15\",Buam!$E:$E,\">=3\")","v":0},null,{"$f":"COUNTIFS(Deandl!$J:$J,\"x\",Deandl!$E:$E,\"<=26\",Deandl!$E:$E,\">=16\")","v":0},null,{"$f":"COUNTIFS(Buam!$J:$J,\"x\",Buam!$E:$E,\"<=26\",Buam!$E:$E,\">=16\")","v":0},null,{"$f":"C13+G13","v":0},{"$f":"E13+I13","v":0},{"$f":"K13+L13","v":0}]
[{"$f":"A13+1","v":2},"Schuhplattler/Dreherinnen",{"$f":"COUNTIFS(Deandl!$K:$K,\"x\",Deandl!$E:$E,\"<=15\",Deandl!$E:$E,\">=3\")","v":0},null,{"$f":"COUNTIFS(Buam!$K:$K,\"x\",Buam!$E:$E,\"<=15\",Buam!$E:$E,\">=3\")","v":0},null,{"$f":"COUNTIFS(Deandl!$K:$K,\"x\",Deandl!$E:$E,\"<=26\",Deandl!$E:$E,\">=16\")","v":0},null,{"$f":"COUNTIFS(Buam!$K:$K,\"x\",Buam!$E:$E,\"<=26\",Buam!$E:$E,\">=16\")","v":0},null,{"$f":"C14+G14","v":0},{"$f":"E14+I14","v":0},{"$f":"K14+L14","v":0}]
[{"$f":"A14+1","v":3},"Tänzer/-innen",{"$f":"COUNTIFS(Deandl!$L:$L,\"x\",Deandl!$E:$E,\"<=15\",Deandl!$E:$E,\">=3\")","v":0},null,{"$f":"COUNTIFS(Buam!$L:$L,\"x\",Buam!$E:$E,\"<=15\",Buam!$E:$E,\">=3\")","v":0},null,{"$f":"COUNTIFS(Deandl!$L:$L,\"x\",Deandl!$E:$E,\"<=26\",Deandl!$E:$E,\">=16\")","v":0},null,{"$f":"COUNTIFS(Buam!$L:$L,\"x\",Buam!$E:$E,\"<=26\",Buam!$E:$E,\">=16\")","v":0},null,0,0,0]
[4,"Sänger/Sängerinnen",{"$f":"COUNTIFS(Deandl!$M:$M,\"x\",Deandl!$E:$E,\"<=15\",Deandl!$E:$E,\">=3\")","v":0},null,{"$f":"COUNTIFS(Buam!$M:$M,\"x\",Buam!$E:$E,\"<=15\",Buam!$E:$E,\">=3\")","v":0},null,{"$f":"COUNTIFS(Deandl!$M:$M,\"x\",Deandl!$E:$E,\"<=26\",Deandl!$E:$E,\">=16\")","v":0},null,{"$f":"COUNTIFS(Buam!$M:$M,\"x\",Buam!$E:$E,\"<=26\",Buam!$E:$E,\">=16\")","v":0},null,0,0,0]
[5,"Volksmusikanten/-innen",{"$f":"COUNTIFS(Deandl!$N:$N,\"x\",Deandl!$E:$E,\"<=15\",Deandl!$E:$E,\">=3\")","v":0},null,{"$f":"COUNTIFS(Buam!$N:$N,\"x\",Buam!$E:$E,\"<=15\",Buam!$E:$E,\">=3\")","v":0},null,{"$f":"COUNTIFS(Deandl!$N:$N,\"x\",Deandl!$E:$E,\"<=26\",Deandl!$E:$E,\">=16\")","v":0},null,{"$f":"COUNTIFS(Buam!$N:$N,\"x\",Buam!$E:$E,\"<=26\",Buam!$E:$E,\">=16\")","v":0},null,0,0,0]
[6,"Brauchtum/Böllerschützen",{"$f":"COUNTIFS(Deandl!$O:$O,\"x\",Deandl!$E:$E,\"<=15\",Deandl!$E:$E,\">=3\")","v":0},null,{"$f":"COUNTIFS(Buam!$O:$O,\"x\",Buam!$E:$E,\"<=15\",Buam!$E:$E,\">=3\")","v":0},null,{"$f":"COUNTIFS(Deandl!$O:$O,\"x\",Deandl!$E:$E,\"<=26\",Deandl!$E:$E,\">=16\")","v":0},null,{"$f":"COUNTIFS(Buam!$O:$O,\"x\",Buam!$E:$E,\"<=26\",Buam!$E:$E,\">=16\")","v":0},null,0,0,0]
[7,"Schnalzer",{"$f":"COUNTIFS(Deandl!$P:$P,\"x\",Deandl!$E:$E,\"<=15\",Deandl!$E:$E,\">=3\")","v":0},null,{"$f":"COUNTIFS(Buam!$P:$P,\"x\",Buam!$E:$E,\"<=15\",Buam!$E:$E,\">=3\")","v":0},null,{"$f":"COUNTIFS(Deandl!$P:$P,\"x\",Deandl!$E:$E,\"<=26\",Deandl!$E:$E,\">=16\")","v":0},null,{"$f":"COUNTIFS(Buam!$P:$P,\"x\",Buam!$E:$E,\"<=26\",Buam!$E:$E,\">=16\")","v":0},null,0,0,0]
[8,"Vereinsmusiker/-innen",{"$f":"COUNTIFS(Deandl!$Q:$Q,\"x\",Deandl!$E:$E,\"<=15\",Deandl!$E:$E,\">=3\")","v":0},null,{"$f":"COUNTIFS(Buam!$Q:$Q,\"x\",Buam!$E:$E,\"<=15\",Buam!$E:$E,\">=3\")","v":0},null,{"$f":"COUNTIFS(Deandl!$Q:$Q,\"x\",Deandl!$E:$E,\"<=26\",Deandl!$E:$E,\">=16\")","v":0},null,{"$f":"COUNTIFS(Buam!$Q:$Q,\"x\",Buam!$E:$E,\"<=26\",Buam!$E:$E,\">=16\")","v":0},null,0,0,0]
[9,"Theaterspieler/-innen",{"$f":"COUNTIFS(Deandl!$R:$R,\"x\",Deandl!$E:$E,\"<=15\",Deandl!$E:$E,\">=3\")","v":0},null,{"$f":"COUNTIFS(Buam!$R:$R,\"x\",Buam!$E:$E,\"<=15\",Buam!$E:$E,\">=3\")","v":0},null,{"$f":"COUNTIFS(Deandl!$R:$R,\"x\",Deandl!$E:$E,\"<=26\",Deandl!$E:$E,\">=16\")","v":0},null,{"$f":"COUNTIFS(Buam!$R:$R,\"x\",Buam!$E:$E,\"<=26\",Buam!$E:$E,\">=16\")","v":0},null,0,0,0]
[10,"Musikkapelle",{"$f":"COUNTIFS(Deandl!$S:$S,\"x\",Deandl!$E:$E,\"<=15\",Deandl!$E:$E,\">=3\")","v":0},null,{"$f":"COUNTIFS(Buam!$S:$S,\"x\",Buam!$E:$E,\"<=15\",Buam!$E:$E,\">=3\")","v":0},null,{"$f":"COUNTIFS(Deandl!$S:$S,\"x\",Deandl!$E:$E,\"<=26\",Deandl!$E:$E,\">=16\")","v":0},null,{"$f":"COUNTIFS(Buam!$S:$S,\"x\",Buam!$E:$E,\"<=26\",Buam!$E:$E,\">=16\")","v":0},null,0,0,0]
[11,"Handwerk und Basteln",{"$f":"COUNTIFS(Deandl!$T:$T,\"x\",Deandl!$E:$E,\"<=15\",Deandl!$E:$E,\">=3\")","v":0},null,{"$f":"COUNTIFS(Buam!$T:$T,\"x\",Buam!$E:$E,\"<=15\",Buam!$E:$E,\">=3\")","v":0},null,{"$f":"COUNTIFS(Deandl!$T:$T,\"x\",Deandl!$E:$E,\"<=26\",Deandl!$E:$E,\">=16\")","v":0},null,{"$f":"COUNTIFS(Buam!$T:$T,\"x\",Buam!$E:$E,\"<=26\",Buam!$E:$E,\">=16\")","v":0},null,0,0,{"$f":"K23+L23","v":0}]
[12,"Sonstige",{"$f":"(COUNTIFS(Deandl!$W:$W,\"x\",Deandl!$E:$E,\"<=15\",Deandl!$E:$E,\">=3\")+(COUNTIFS(Deandl!$Y:$Y,\"x\",Deandl!$E:$E,\"<=15\",Deandl!$E:$E,\">=3\")+COUNTIFS(Deandl!$AA:$AA,\"x\",Deandl!$E:$E,\"<=15\",Deandl!$E:$E,\">=3\")))","v":0},null,{"$f":"(COUNTIFS(Buam!$W:$W,\"x\",Buam!$E:$E,\"<=15\",Buam!$E:$E,\">=3\")+(COUNTIFS(Buam!$Y:$Y,\"x\",Buam!$E:$E,\"<=15\",Buam!$E:$E,\">=13\")+COUNTIFS(Buam!$AA:$AA,\"x\",Buam!$E:$E,\"<=15\",Buam!$E:$E,\">=3\")))","v":0},null,{"$f":"(COUNTIFS(Deandl!$W:$W,\"x\",Deandl!$E:$E,\"<=26\",Deandl!$E:$E,\">=16\")+(COUNTIFS(Deandl!$Y:$Y,\"x\",Deandl!$E:$E,\"<=26\",Deandl!$E:$E,\">=16\")+COUNTIFS(Deandl!$AA:$AA,\"x\",Deandl!$E:$E,\"<=26\",Deandl!$E:$E,\">=16\")))","v":0},null,{"$f":"(COUNTIFS(Buam!$W:$W,\"x\",Buam!$E:$E,\"<=26\",Buam!$E:$E,\">=16\")+(COUNTIFS(Buam!$Y:$Y,\"x\",Buam!$E:$E,\"<=26\",Buam!$E:$E,\">=16\")+COUNTIFS(Buam!$AA:$AA,\"x\",Buam!$E:$E,\"<=26\",Buam!$E:$E,\">=16\")))","v":0},null,0,0,0]
["Summe im Altersbereich",null,{"$f":"SUM(C13:D24)","v":0},null,{"$f":"SUM(E13:F24)","v":0},null,{"$f":"SUM(G13:H24)","v":0},null,{"$f":"SUM(I13:J24)","v":0},null,{"$f":"SUM(K13:K24)","v":0},{"$f":"SUM(L13:L24)","v":0}]
["Altersbereich gesamt",null,{"$f":"C25+E25","v":0},null,null,null,{"$f":"G25+I25","v":0},null,null,null,"Gruppenstärke Gesamt",null,{"$f":"SUM(M13:M25)","v":0}]
[]
[13,"(im Moment/vorübergehend) Passive Kinder und Jugendliche bis 26 Jahre",null,null,null,null,null,null,null,null,"Gesamt",null,{"$f":"COUNTIFS(Buam!$U:$U,\"x\",Buam!$E:$E,\"<=26\")+(COUNTIFS(Deandl!$U:$U,\"x\",Deandl!$E:$E,\"<=26\"))","v":0}]
[]
[13,"Gruppenstärke Gesamt ",null,null,null,null,null,null,null,null,"Gesamt",null,{"$f":"M26+M28","v":0}]
[]
[13,"Anzahl der Verantwortlichen / Mitarbeiter / Helfer in der Jugendarbeit",null,null,null,null,null,null,null,null,"Gesamt",null,0]
[]
[14,"davon mit abgeschlossener Jugendleiter-Grundschulung und (ab 2018) gültiger JULEICA",null,null,null,null,null,null,null,null,"Gesamt",null,{"$f":"COUNTIFS(Jugendleiter!S2:S88,\"x\",Jugendleiter!T2:T88,\"x\",Jugendleiter!U2:U88,\"x\")","v":0}]
[]
[15,"maximal förderfähige qualifizierte Jugendleiter",null,null,null,null,null,null,null,null,"Gesamt",null,{"$f":"IF(M13>100,\"10\",ROUNDUP(M13/10,0))*1","v":0}]
[]
[16,"im Erhebungsjahr förderfähige Jugendleiter",null,null,null,null,null,null,null,null,"Gesamt",null,{"$f":"IF(M34<M36,M34,M36)","v":0}]

{"sheet":"Förderantragsdaten","index":8,"n_rows":22,"n_cols":7,"rows_kept":22,"cut":false,"hidden":false,"merged":[[109,5,109,6],[114,5,114,6],[14,0,14,3],[22,0,22,2],[21,0,21,2],[70,0,70,7],[71,0,71,7],[101,1,101,7],[102,1,102,7],[97,1,97,7],[98,1,98,7],[99,0,100,0],[99,1,99,7],[100,1,100,7],[91,0,91,7],[92,0,92,2],[92,4,92,7],[93,0,93,7],[42,2,42,7],[41,0,42,0],[94,0,94,7],[78,1,78,7],[79,1,79,7],[80,1,80,7],[0,0,0,7],[2,0,2,7],[57,1,57,7],[58,1,58,7],[59,1,59,7],[60,1,60,7],[61,1,61,7],[48,0,48,7],[49,0,49,7],[50,0,50,7],[51,0,51,7],[52,0,52,2],[53,0,53,7],[54,0,54,7],[52,4,52,7],[47,0,47,7],[24,3,24,7],[41,6,41,7],[44,1,44,7],[45,1,45,7],[3,0,3,7],[14,4,14,7],[88,0,88,7],[89,0,89,7],[90,0,90,7],[69,0,69,7],[38,1,39,1],[38,2,38,4],[38,6,38,7],[39,2,39,7],[81,1,81,7],[79,0,80,0],[74,0,74,7],[72,4,72,7],[73,0,73,7],[82,1,82,7],[77,1,77,7],[85,1,85,7],[87,0,87,7],[72,0,72,2],[62,1,62,7],[67,0,67,7],[68,0,68,7],[38,0,39,0],[59,0,60,0],[41,2,41,4],[65,1,65,7],[5,0,5,3],[5,4,5,7],[4,0,4,3],[4,4,4,7],[7,0,9,0],[7,6,7,7],[7,1,7,5],[8,1,8,7],[9,1,9,7],[11,1,11,5],[32,0,32,4],[24,0,24,2],[22,5,22,7],[30,0,30,3],[30,4,30,7],[116,0,117,7],[120,0,121,7],[10,0,10,7],[17,0,17,2],[17,3,17,5],[17,6,17,7],[19,0,19,7],[21,5,21,7],[23,0,23,2],[23,3,23,7],[18,0,18,2],[18,3,18,5],[18,6,18,7],[106,0,106,7],[33,0,33,4],[27,0,27,3],[27,4,27,7],[29,0,29,3],[29,4,29,7],[28,0,28,3],[13,1,13,7],[11,0,13,0],[11,6,11,7],[12,1,12,7]]}
["Förderung von Aktivitäten im Bayerischen Trachtenverband e. V.                                 aus Mitteln der Heimatpflege "]
[]
["Förderantragsdaten für den Hauptförderantrag"]
["zur Weiterleitung an den Vereinsverantwortlichen"]
["zum Stichtag",null,null,null,{"$f":"Deckblatt!B4","v":"2024-10-31"}]
[{"$f":"Deckblatt!A5","v":"(Vereinsname eintragen)"},null,null,null,{"$f":"Deckblatt!B5","v":"(Vereinsort eintragen)"}]
[]
[{"$f":"Erhebungsbogen!M13","v":0},"Anzahl der im antragstellenden Verein am",null,null,null,null,{"$f":"Deckblatt!B4","v":"2024-10-31"}]
[null,"in der Bayerischen Trachtenjugend gemeldeten Personen vom vollendeten dritten bis zum vollendeten 27. Lebensjahr, für deren Teilnahme an der laufenden Jugendarbeit der antragstellende Verein auf eigene Rechnung Versicherungsschutz begründet hat.      "]
[null,"Einzutragen im Hauptförderantrag Zelle A43"]
[]
[{"$f":"Erhebungsbogen!M38","v":0},"Anzahl der im antragstellenden Verein am",null,null,null,null,{"$f":"Deckblatt!B4","v":"2024-10-31"}]
[null," in der Bayerischen Trachtenjugend gemeldeten Jugendleiterinnen und Jugendleiter oder Mitarbeiterinnen und Mitarbeiter in der Vereinsjugendarbeit mit abgeschlossener Jugendleitergrundschulung gem. Bildungsprogramm der Bayerischen Trachtenjugend, die eine gültige JULEICA vorweisen können."]
[null,"Einzutragen im Hauptförderantrag Zelle A46"]
[]
[]
[]
[]
[]
[]
[]
["Ort, Datum",null,null,null,null,"Unterschrift Jugendleiter/in"]

{"sheet":"Zusätzliche Auswertungen","index":9,"n_rows":18,"n_cols":15,"rows_kept":18,"cut":false,"hidden":false,"merged":[[0,0,0,8],[1,0,1,7]]}
["Kinder- und Jugenderfassung  - Zusätzliche Auswertungen"]
[]
["Buam",null,null,null,null,"Deandl"]
["Spalte",null,"Suchkriterium eintragen","Anzahl",null,"Spalte",null,"Suchkriterium eintragen","Anzahl"]
[1,"Suche nach",null,{"$f":"IF(A5=1,COUNTIFS(Buam!$B$2:$B$952,C5),IF(A5=2,COUNTIFS(Buam!$C$2:$C$952,C5),IF(A5=3,COUNTIFS(Buam!$E$2:$E$952,C5),IF(A5=4,COUNTIFS(Buam!$H$2:$H$952,C5),IF(A5=5,COUNTIFS(Buam!$V$2:$V$952,C5),IF(A5=6,COUNTIFS(Buam!$X$2:$X$952,C5),IF(A5=7,COUNTIFS(Buam!$B$2:$Z$952,C5),IF(A5=8,COUNTIFS(Buam!$AB$2:$AB$952,C5),IF(A5=9,COUNTIFS(Buam!B$2:AC952,C5),IF(A5=10,COUNTIFS(Buam!$AD$2:$AD$952,C5),IF(A5=11,COUNTIFS(Buam!$AE$2:$AE$952,C5))))))))))))","v":0},null,1,"Suche nach",null,{"$f":"IF(F5=1,COUNTIFS(Deandl!$B$2:$B$962,H5),IF(F5=2,COUNTIFS(Deandl!$C$2:$C$962,H5),IF(F5=3,COUNTIFS(Deandl!$E$2:$E$962,H5),IF(F5=4,COUNTIFS(Deandl!$H$2:$H$962,H5),IF(F5=5,COUNTIFS(Deandl!$V$2:$V$962,H5),IF(F5=6,COUNTIFS(Deandl!$X$2:$X$962,H5),IF(F5=7,COUNTIFS(Deandl!$Z$2:$Z$962,H5),IF(F5=8,COUNTIFS(Deandl!$AB$2:$AB$962,H5),IF(F5=9,COUNTIFS(Deandl!G$2:AH962,H5),IF(F5=10,COUNTIFS(Deandl!$AD$2:$AD$962,H5),IF(F5=11,COUNTIFS(Deandl!$AE$2:$AE$962,H5))))))))))))","v":0}]
[1,"Suche nach",null,{"$f":"IF(A6=1,COUNTIFS(Buam!$B$2:$B$952,C6),IF(A6=2,COUNTIFS(Buam!$C$2:$C$952,C6),IF(A6=3,COUNTIFS(Buam!$E$2:$E$952,C6),IF(A6=4,COUNTIFS(Buam!$H$2:$H$952,C6),IF(A6=5,COUNTIFS(Buam!$V$2:$V$952,C6),IF(A6=6,COUNTIFS(Buam!$X$2:$X$952,C6),IF(A6=7,COUNTIFS(Buam!$B$2:$Z$952,C6),IF(A6=8,COUNTIFS(Buam!$AB$2:$AB$952,C6),IF(A6=9,COUNTIFS(Buam!B$2:AC953,C6),IF(A6=10,COUNTIFS(Buam!$AD$2:$AD$952,C6),IF(A6=11,COUNTIFS(Buam!$AE$2:$AE$952,C6))))))))))))","v":0},null,1,"Suche nach",null,{"$f":"IF(F6=1,COUNTIFS(Deandl!$B$2:$B$962,H6),IF(F6=2,COUNTIFS(Deandl!$C$2:$C$962,H6),IF(F6=3,COUNTIFS(Deandl!$E$2:$E$962,H6),IF(F6=4,COUNTIFS(Deandl!$H$2:$H$962,H6),IF(F6=5,COUNTIFS(Deandl!$V$2:$V$962,H6),IF(F6=6,COUNTIFS(Deandl!$X$2:$X$962,H6),IF(F6=7,COUNTIFS(Deandl!$Z$2:$Z$962,H6),IF(F6=8,COUNTIFS(Deandl!$AB$2:$AB$962,H6),IF(F6=9,COUNTIFS(Deandl!G$2:AH963,H6),IF(F6=10,COUNTIFS(Deandl!$AD$2:$AD$962,H6),IF(F6=11,COUNTIFS(Deandl!$AE$2:$AE$962,H6))))))))))))","v":0}]
[4,"Suche nach",null,{"$f":"IF(A7=1,COUNTIFS(Buam!$B$2:$B$952,C7),IF(A7=2,COUNTIFS(Buam!$C$2:$C$952,C7),IF(A7=3,COUNTIFS(Buam!$E$2:$E$952,C7),IF(A7=4,COUNTIFS(Buam!$H$2:$H$952,C7),IF(A7=5,COUNTIFS(Buam!$V$2:$V$952,C7),IF(A7=6,COUNTIFS(Buam!$X$2:$X$952,C7),IF(A7=7,COUNTIFS(Buam!$B$2:$Z$952,C7),IF(A7=8,COUNTIFS(Buam!$AB$2:$AB$952,C7),IF(A7=9,COUNTIFS(Buam!B$2:AC954,C7),IF(A7=10,COUNTIFS(Buam!$AD$2:$AD$952,C7),IF(A7=11,COUNTIFS(Buam!$AE$2:$AE$952,C7))))))))))))","v":0},null,1,"Suche nach",null,{"$f":"IF(F7=1,COUNTIFS(Deandl!$B$2:$B$962,H7),IF(F7=2,COUNTIFS(Deandl!$C$2:$C$962,H7),IF(F7=3,COUNTIFS(Deandl!$E$2:$E$962,H7),IF(F7=4,COUNTIFS(Deandl!$H$2:$H$962,H7),IF(F7=5,COUNTIFS(Deandl!$V$2:$V$962,H7),IF(F7=6,COUNTIFS(Deandl!$X$2:$X$962,H7),IF(F7=7,COUNTIFS(Deandl!$Z$2:$Z$962,H7),IF(F7=8,COUNTIFS(Deandl!$AB$2:$AB$962,H7),IF(F7=9,COUNTIFS(Deandl!G$2:AH964,H7),IF(F7=10,COUNTIFS(Deandl!$AD$2:$AD$962,H7),IF(F7=11,COUNTIFS(Deandl!$AE$2:$AE$962,H7))))))))))))","v":0}]
[1,"Suche nach",null,{"$f":"IF(A8=1,COUNTIFS(Buam!$B$2:$B$952,C8),IF(A8=2,COUNTIFS(Buam!$C$2:$C$952,C8),IF(A8=3,COUNTIFS(Buam!$E$2:$E$952,C8),IF(A8=4,COUNTIFS(Buam!$H$2:$H$952,C8),IF(A8=5,COUNTIFS(Buam!$V$2:$V$952,C8),IF(A8=6,COUNTIFS(Buam!$X$2:$X$952,C8),IF(A8=7,COUNTIFS(Buam!$B$2:$Z$952,C8),IF(A8=8,COUNTIFS(Buam!$AB$2:$AB$952,C8),IF(A8=9,COUNTIFS(Buam!B$2:AC955,C8),IF(A8=10,COUNTIFS(Buam!$AD$2:$AD$952,C8),IF(A8=11,COUNTIFS(Buam!$AE$2:$AE$952,C8))))))))))))","v":0},null,1,"Suche nach",null,{"$f":"IF(F8=1,COUNTIFS(Deandl!$B$2:$B$962,H8),IF(F8=2,COUNTIFS(Deandl!$C$2:$C$962,H8),IF(F8=3,COUNTIFS(Deandl!$E$2:$E$962,H8),IF(F8=4,COUNTIFS(Deandl!$H$2:$H$962,H8),IF(F8=5,COUNTIFS(Deandl!$V$2:$V$962,H8),IF(F8=6,COUNTIFS(Deandl!$X$2:$X$962,H8),IF(F8=7,COUNTIFS(Deandl!$Z$2:$Z$962,H8),IF(F8=8,COUNTIFS(Deandl!$AB$2:$AB$962,H8),IF(F8=9,COUNTIFS(Deandl!G$2:AH965,H8),IF(F8=10,COUNTIFS(Deandl!$AD$2:$AD$962,H8),IF(F8=11,COUNTIFS(Deandl!$AE$2:$AE$962,H8))))))))))))","v":0},null,null,null,null,null,"Name"]
[1,"Suche nach",null,{"$f":"IF(A9=1,COUNTIFS(Buam!$B$2:$B$952,C9),IF(A9=2,COUNTIFS(Buam!$C$2:$C$952,C9),IF(A9=3,COUNTIFS(Buam!$E$2:$E$952,C9),IF(A9=4,COUNTIFS(Buam!$H$2:$H$952,C9),IF(A9=5,COUNTIFS(Buam!$V$2:$V$952,C9),IF(A9=6,COUNTIFS(Buam!$X$2:$X$952,C9),IF(A9=7,COUNTIFS(Buam!$B$2:$Z$952,C9),IF(A9=8,COUNTIFS(Buam!$AB$2:$AB$952,C9),IF(A9=9,COUNTIFS(Buam!B$2:AC956,C9),IF(A9=10,COUNTIFS(Buam!$AD$2:$AD$952,C9),IF(A9=11,COUNTIFS(Buam!$AE$2:$AE$952,C9))))))))))))","v":0},null,1,"Suche nach",null,{"$f":"IF(F9=1,COUNTIFS(Deandl!$B$2:$B$962,H9),IF(F9=2,COUNTIFS(Deandl!$C$2:$C$962,H9),IF(F9=3,COUNTIFS(Deandl!$E$2:$E$962,H9),IF(F9=4,COUNTIFS(Deandl!$H$2:$H$962,H9),IF(F9=5,COUNTIFS(Deandl!$V$2:$V$962,H9),IF(F9=6,COUNTIFS(Deandl!$X$2:$X$962,H9),IF(F9=7,COUNTIFS(Deandl!$Z$2:$Z$962,H9),IF(F9=8,COUNTIFS(Deandl!$AB$2:$AB$962,H9),IF(F9=9,COUNTIFS(Deandl!G$2:AH966,H9),IF(F9=10,COUNTIFS(Deandl!$AD$2:$AD$962,H9),IF(F9=11,COUNTIFS(Deandl!$AE$2:$AE$962,H9))))))))))))","v":0},null,null,null,null,null,"Vorname"]
[1,"Suche nach",null,{"$f":"IF(A10=1,COUNTIFS(Buam!$B$2:$B$952,C10),IF(A10=2,COUNTIFS(Buam!$C$2:$C$952,C10),IF(A10=3,COUNTIFS(Buam!$E$2:$E$952,C10),IF(A10=4,COUNTIFS(Buam!$H$2:$H$952,C10),IF(A10=5,COUNTIFS(Buam!$V$2:$V$952,C10),IF(A10=6,COUNTIFS(Buam!$X$2:$X$952,C10),IF(A10=7,COUNTIFS(Buam!$B$2:$Z$952,C10),IF(A10=8,COUNTIFS(Buam!$AB$2:$AB$952,C10),IF(A10=9,COUNTIFS(Buam!B$2:AC957,C10),IF(A10=10,COUNTIFS(Buam!$AD$2:$AD$952,C10),IF(A10=11,COUNTIFS(Buam!$AE$2:$AE$952,C10))))))))))))","v":0},null,1,"Suche nach",null,{"$f":"IF(F10=1,COUNTIFS(Deandl!$B$2:$B$962,H10),IF(F10=2,COUNTIFS(Deandl!$C$2:$C$962,H10),IF(F10=3,COUNTIFS(Deandl!$E$2:$E$962,H10),IF(F10=4,COUNTIFS(Deandl!$H$2:$H$962,H10),IF(F10=5,COUNTIFS(Deandl!$V$2:$V$962,H10),IF(F10=6,COUNTIFS(Deandl!$X$2:$X$962,H10),IF(F10=7,COUNTIFS(Deandl!$Z$2:$Z$962,H10),IF(F10=8,COUNTIFS(Deandl!$AB$2:$AB$962,H10),IF(F10=9,COUNTIFS(Deandl!G$2:AH967,H10),IF(F10=10,COUNTIFS(Deandl!$AD$2:$AD$962,H10),IF(F10=11,COUNTIFS(Deandl!$AE$2:$AE$962,H10))))))))))))","v":0},null,null,null,null,null,"Alter"]
[4,"Suche nach",null,{"$f":"IF(A11=1,COUNTIFS(Buam!$B$2:$B$952,C11),IF(A11=2,COUNTIFS(Buam!$C$2:$C$952,C11),IF(A11=3,COUNTIFS(Buam!$E$2:$E$952,C11),IF(A11=4,COUNTIFS(Buam!$H$2:$H$952,C11),IF(A11=5,COUNTIFS(Buam!$V$2:$V$952,C11),IF(A11=6,COUNTIFS(Buam!$X$2:$X$952,C11),IF(A11=7,COUNTIFS(Buam!$B$2:$Z$952,C11),IF(A11=8,COUNTIFS(Buam!$AB$2:$AB$952,C11),IF(A11=9,COUNTIFS(Buam!B$2:AC958,C11),IF(A11=10,COUNTIFS(Buam!$AD$2:$AD$952,C11),IF(A11=11,COUNTIFS(Buam!$AE$2:$AE$952,C11))))))))))))","v":0},null,1,"Suche nach",null,{"$f":"IF(F11=1,COUNTIFS(Deandl!$B$2:$B$962,H11),IF(F11=2,COUNTIFS(Deandl!$C$2:$C$962,H11),IF(F11=3,COUNTIFS(Deandl!$E$2:$E$962,H11),IF(F11=4,COUNTIFS(Deandl!$H$2:$H$962,H11),IF(F11=5,COUNTIFS(Deandl!$V$2:$V$962,H11),IF(F11=6,COUNTIFS(Deandl!$X$2:$X$962,H11),IF(F11=7,COUNTIFS(Deandl!$Z$2:$Z$962,H11),IF(F11=8,COUNTIFS(Deandl!$AB$2:$AB$962,H11),IF(F11=9,COUNTIFS(Deandl!G$2:AH968,H11),IF(F11=10,COUNTIFS(Deandl!$AD$2:$AD$962,H11),IF(F11=11,COUNTIFS(Deandl!$AE$2:$AE$962,H11))))))))))))","v":0},null,null,null,null,null,"PLZ"]
[1,"Suche nach",null,{"$f":"IF(A12=1,COUNTIFS(Buam!$B$2:$B$952,C12),IF(A12=2,COUNTIFS(Buam!$C$2:$C$952,C12),IF(A12=3,COUNTIFS(Buam!$E$2:$E$952,C12),IF(A12=4,COUNTIFS(Buam!$H$2:$H$952,C12),IF(A12=5,COUNTIFS(Buam!$V$2:$V$952,C12),IF(A12=6,COUNTIFS(Buam!$X$2:$X$952,C12),IF(A12=7,COUNTIFS(Buam!$B$2:$Z$952,C12),IF(A12=8,COUNTIFS(Buam!$AB$2:$AB$952,C12),IF(A12=9,COUNTIFS(Buam!B$2:AC959,C12),IF(A12=10,COUNTIFS(Buam!$AD$2:$AD$952,C12),IF(A12=11,COUNTIFS(Buam!$AE$2:$AE$952,C12))))))))))))","v":0},null,1,"Suche nach",null,{"$f":"IF(F12=1,COUNTIFS(Deandl!$B$2:$B$962,H12),IF(F12=2,COUNTIFS(Deandl!$C$2:$C$962,H12),IF(F12=3,COUNTIFS(Deandl!$E$2:$E$962,H12),IF(F12=4,COUNTIFS(Deandl!$H$2:$H$962,H12),IF(F12=5,COUNTIFS(Deandl!$V$2:$V$962,H12),IF(F12=6,COUNTIFS(Deandl!$X$2:$X$962,H12),IF(F12=7,COUNTIFS(Deandl!$Z$2:$Z$962,H12),IF(F12=8,COUNTIFS(Deandl!$AB$2:$AB$962,H12),IF(F12=9,COUNTIFS(Deandl!G$2:AH969,H12),IF(F12=10,COUNTIFS(Deandl!$AD$2:$AD$962,H12),IF(F12=11,COUNTIFS(Deandl!$AE$2:$AE$962,H12))))))))))))","v":0},null,null,null,null,null,"Eintrittsjahr"]
[1,"Suche nach",null,{"$f":"IF(A13=1,COUNTIFS(Buam!$B$2:$B$952,C13),IF(A13=2,COUNTIFS(Buam!$C$2:$C$952,C13),IF(A13=3,COUNTIFS(Buam!$E$2:$E$952,C13),IF(A13=4,COUNTIFS(Buam!$H$2:$H$952,C13),IF(A13=5,COUNTIFS(Buam!$V$2:$V$952,C13),IF(A13=6,COUNTIFS(Buam!$X$2:$X$952,C13),IF(A13=7,COUNTIFS(Buam!$B$2:$Z$952,C13),IF(A13=8,COUNTIFS(Buam!$AB$2:$AB$952,C13),IF(A13=9,COUNTIFS(Buam!B$2:AC960,C13),IF(A13=10,COUNTIFS(Buam!$AD$2:$AD$952,C13),IF(A13=11,COUNTIFS(Buam!$AE$2:$AE$952,C13))))))))))))","v":0},null,1,"Suche nach",null,{"$f":"IF(F13=1,COUNTIFS(Deandl!$B$2:$B$962,H13),IF(F13=2,COUNTIFS(Deandl!$C$2:$C$962,H13),IF(F13=3,COUNTIFS(Deandl!$E$2:$E$962,H13),IF(F13=4,COUNTIFS(Deandl!$H$2:$H$962,H13),IF(F13=5,COUNTIFS(Deandl!$V$2:$V$962,H13),IF(F13=6,COUNTIFS(Deandl!$X$2:$X$962,H13),IF(F13=7,COUNTIFS(Deandl!$Z$2:$Z$962,H13),IF(F13=8,COUNTIFS(Deandl!$AB$2:$AB$962,H13),IF(F13=9,COUNTIFS(Deandl!G$2:AH970,H13),IF(F13=10,COUNTIFS(Deandl!$AD$2:$AD$962,H13),IF(F13=11,COUNTIFS(Deandl!$AE$2:$AE$962,H13))))))))))))","v":0},null,null,null,null,null,"Sonstiges 1"]
[1,"Suche nach",null,{"$f":"IF(A14=1,COUNTIFS(Buam!$B$2:$B$952,C14),IF(A14=2,COUNTIFS(Buam!$C$2:$C$952,C14),IF(A14=3,COUNTIFS(Buam!$E$2:$E$952,C14),IF(A14=4,COUNTIFS(Buam!$H$2:$H$952,C14),IF(A14=5,COUNTIFS(Buam!$V$2:$V$952,C14),IF(A14=6,COUNTIFS(Buam!$X$2:$X$952,C14),IF(A14=7,COUNTIFS(Buam!$B$2:$Z$952,C14),IF(A14=8,COUNTIFS(Buam!$AB$2:$AB$952,C14),IF(A14=9,COUNTIFS(Buam!B$2:AC961,C14),IF(A14=10,COUNTIFS(Buam!$AD$2:$AD$952,C14),IF(A14=11,COUNTIFS(Buam!$AE$2:$AE$952,C14))))))))))))","v":0},null,1,"Suche nach",null,{"$f":"IF(F14=1,COUNTIFS(Deandl!$B$2:$B$962,H14),IF(F14=2,COUNTIFS(Deandl!$C$2:$C$962,H14),IF(F14=3,COUNTIFS(Deandl!$E$2:$E$962,H14),IF(F14=4,COUNTIFS(Deandl!$H$2:$H$962,H14),IF(F14=5,COUNTIFS(Deandl!$V$2:$V$962,H14),IF(F14=6,COUNTIFS(Deandl!$X$2:$X$962,H14),IF(F14=7,COUNTIFS(Deandl!$Z$2:$Z$962,H14),IF(F14=8,COUNTIFS(Deandl!$AB$2:$AB$962,H14),IF(F14=9,COUNTIFS(Deandl!G$2:AH971,H14),IF(F14=10,COUNTIFS(Deandl!$AD$2:$AD$962,H14),IF(F14=11,COUNTIFS(Deandl!$AE$2:$AE$962,H14))))))))))))","v":0},null,null,null,null,null,"Sonstiges 2"]
[null,null,null,null,null,null,null,null,null,null,null,null,null,null,"Sonstiges 3"]
[null,null,null,null,null,null,null,null,null,null,null,null,null,null,"Zusätzlich I"]
[null,null,null,null,null,null,null,null,null,null,null,null,null,null,"Zusätzlich II"]
[null,null,null,null,null,null,null,null,null,null,null,null,null,null,"Zusätzlich III"]